Cogmind - Beta 13 --- EXPLORER MODE // 2024.06.23 @ 21:42:03 // Winter2019/RPGLIKE Player: Agod Result: Destroyed by Tracker with Linked Autogun Performance ------------- Evolutions (8) 4000 Regions Visited (33) 6600 Robots Destroyed (626) 3130 Value Destroyed (29838) 29838 Prototype IDs (147) 2940 Alien Tech Used (6) 1200 Bonus (16906) 16906 TOTAL SCORE: 64614 Bonus ------- High Alert Combat Kills 1947 Follower Combat Kills 3178 Entered Garrisons 800 Met Data Miner 300 Acquired ECA 300 Met Zhirov 300 Met Warlord at Base 500 MAIN.C Attacked Warlord 500 Warlord Defense Kills 2446 Hacked Protovariant 1000 Met Warlord at Research 2000 Invited to Help at Command 2000 Scanned by Researcher 1000 Pursued by Intercept 500 Acquired SGEMP 2000 Friendly Fire -1865 Cogmind --------- Core Integrity 0/1250 Matter 348/400 Energy 1000/1000 System Corruption 2% Temperature Cool (0) Movement Core (150) Ox2 Location -2/Section 7 Parts ------- > --- POWER (3) -------- Vortex Chain Reactor (fused) > --- PROPULSION (7) --- Cooled Aerolev Unit Cooled Aerolev Unit Antigrav System Antigrav System Improved Antigrav System Cooled Antigrav System Cooled Antigrav System > --- UTILITY (10) ----- Advanced Salvage Targeting Computer Experimental Targeting Computer Advanced Target Analyzer Experimental Target Analyzer Core Analyzer Recoil Nullifier Experimental Reaction Control System Advanced Hacking Suite Ghost Barrier Advanced Corruption Screen > --- WEAPON (5) ------- Hypervelocity Coil Gun Hypervelocity Coil Gun Tri-rail Accelerator > --- INVENTORY (9) ---- Graphene Brace Chronowheel Integrity Redistributor Subatomic Replicator Spacefold Activator Graviton Cannon SGEMP Prototype Peak State ------------ > --- POWER ------------ Vortex Chain Reactor > --- PROPULSION ------- Cooled Aerolev Unit Cooled Aerolev Unit Antigrav System Antigrav System Cooled Antigrav System Cooled Antigrav System > --- UTILITY ---------- Advanced Salvage Targeting Computer Experimental Targeting Computer Advanced Melee Analysis Suite Advanced Target Analyzer Core Analyzer Experimental Core Analyzer Nanoactuators Experimental Reaction Control System Advanced Hacking Suite Ghost Barrier > --- WEAPON ----------- Hypervelocity Coil Gun Hypervelocity Coil Gun Core Stripper > --- INVENTORY -------- Triangulator Recoil Nullifier Chronowheel High-powered Transdimensional Reconstructor Subatomic Replicator Tri-rail Accelerator SGEMP Prototype [Rating: 181] Favorites ----------- Power Heavy Deuterium Engine Engine Heavy Deuterium Engine Power Core Nuclear Core Reactor Vortex Chain Reactor Propulsion Cooled Airjet Leg Aluminum Leg Hover Unit Cooled Airjet Utility Core Analyzer Device Recoil Nullifier Storage Advanced Matter Compressor Processor Core Analyzer Hackware Makeshift Hacking Suite Protection Utility Shielding Weapon Hypervelocity Coil Gun Energy Gun Small Laser Energy Cannon Vortex Cannon Ballistic Gun Hypervelocity Coil Gun Ballistic Cannon Hypervelocity Mass Driver Launcher Grenade Launcher Special Weapon Mining Laser Impact Weapon Core Stripper Slashing Weapon Makeshift Axe Piercing Weapon Kinetic Spear Build | -11 -10 -10 -10 -9 -8 -8 -8 -8 -8 -8 -8 -7 -7 -7 -7 -6 -6 -6 -5 -5 -5 -5 -4 -4 -4 -4 -4 -3 -3 -3 -2 -2 -2 ------- Run | Yrd Mat Min Exi Min Mat Gar Mat Gar Mat Gar Mat Fac Low Low Dat Pro Fac Gar Fac Upp Upp War Pro Fac Upp Upp Zhi Pro Res Tes Res Qua Sec Slots Evolved 18 | 3 . 1 . 1 3 2 . . . . . 1 . . . 1 . . . . 1 1 . . . . . 1 1 1 1 . . Power 1 | . . . . . . . . . . . . . . . . . . . . . . 1 . . . . . . . . . . . Propulsion 5 | 1 . . . . 2 . . . . . . . . . . . . . . . . . . . . . . 1 1 . . . . Utility 9 | 1 . 1 . 1 1 1 . . . . . 1 . . . 1 . . . . 1 . . . . . . . . . 1 . . Weapon 3 | 1 . . . . . 1 . . . . . . . . . . . . . . . . . . . . . . . 1 . . . Parts Attached 240 | 6 7 5 1 10 12 20 7 4 4 . . 10 4 . 2 3 14 7 8 2 2 20 3 4 . 1 8 . 19 21 12 21 3 Power 16 | 1 1 . . 2 1 . 1 . 1 . . 1 . . . . . . . . . 2 2 . . 1 3 . . . . . . Engine 5 | 1 1 . . 1 . . . . . . . 1 . . . . . . . . . 1 . . . . . . . . . . . Core 6 | . . . . 1 1 . 1 . 1 . . . . . . . . . . . . . 2 . . . . . . . . . . Reactor 5 | . . . . . . . . . . . . . . . . . . . . . . 1 . . . 1 3 . . . . . . Propulsion 30 | 2 2 . . . 3 1 4 3 1 . . 5 . . . . 1 . 2 . . 2 . . . . . . 3 . . . 1 Treads . | . . . . . . . . . . . . . . . . . . . . . . . . . . . . . . . . . . Leg 2 | 2 . . . . . . . . . . . . . . . . . . . . . . . . . . . . . . . . . Wheel . | . . . . . . . . . . . . . . . . . . . . . . . . . . . . . . . . . . Hover 28 | . 2 . . . 3 1 4 3 1 . . 5 . . . . 1 . 2 . . 2 . . . . . . 3 . . . 1 Flight . | . . . . . . . . . . . . . . . . . . . . . . . . . . . . . . . . . . Utility 65 | 2 2 1 . 1 1 3 2 1 1 . . 4 . . . 1 2 . . . 2 6 1 2 . . 1 . 2 10 8 10 2 Device 39 | . . . . . 1 2 . . 1 . . 1 . . . 1 1 . . . 2 3 . 2 . . 1 . . 10 6 7 1 Storage 1 | . . . . . . . . . . . . . . . . . 1 . . . . . . . . . . . . . . . . Processor 18 | 2 2 . . . . 1 1 1 . . . 3 . . . . . . . . . 2 1 . . . . . 1 . . 3 1 Hackware 4 | . . . . 1 . . 1 . . . . . . . . . . . . . . 1 . . . . . . 1 . . . . Protection 3 | . . 1 . . . . . . . . . . . . . . . . . . . . . . . . . . . . 2 . . Artifact . | . . . . . . . . . . . . . . . . . . . . . . . . . . . . . . . . . . Weapon 129 | 1 2 4 1 7 7 16 . . 1 . . . 4 . 2 2 11 7 6 2 . 10 . 2 . . 4 . 14 11 4 11 . Energy Gun 1 | . 1 . . . . . . . . . . . . . . . . . . . . . . . . . . . . . . . . Energy Cannon 1 | . . . . . . . . . . . . . . . . . . . . . . 1 . . . . . . . . . . . Ballistic Gun 22 | 1 1 1 . 1 1 6 . . 1 . . . 1 . . . . . 1 . . 2 . . . . 2 . . . 2 2 . Ballistic Cannon 44 | . . . . . . 6 . . . . . . 2 . 1 1 3 4 3 1 . 3 . 1 . . 1 . 7 7 . 4 . Launcher 12 | . . 2 . 3 3 . . . . . . . . . . . 1 . . . . 1 . . . . . . . . . 2 . Special Weapon 1 | . . 1 . . . . . . . . . . . . . . . . . . . . . . . . . . . . . . . Impact Weapon 3 | . . . . . . . . . . . . . . . . . . . . . . . . . . . . . . . . 3 . Slashing Weapon 44 | . . . 1 3 3 4 . . . . . . 1 . 1 1 6 3 2 1 . 3 . 1 . . 1 . 7 4 2 . . Piercing Weapon 1 | . . . . . . . . . . . . . . . . . 1 . . . . . . . . . . . . . . . . Special Melee Weapon . | . . . . . . . . . . . . . . . . . . . . . . . . . . . . . . . . . . Unidentified Prototypes 27 | . . . . . 1 . . . . . . . . . . . 4 . . . . 8 1 . . . 2 . . 2 2 5 2 Corrupted Parts 1 | . . . . . . . . . . . . . . . . . . . . . . . 1 . . . . . . . . . . System Corruption 4 | . . . . . . . . . . . . . . . . . . . . . . . 4 . . . . . . . . . . Parts Lost . | . . . . . . . . . . . . . . . . . . . . . . . . . . . . . . . . . . Power . | . . . . . . . . . . . . . . . . . . . . . . . . . . . . . . . . . . Propulsion . | . . . . . . . . . . . . . . . . . . . . . . . . . . . . . . . . . . Utility . | . . . . . . . . . . . . . . . . . . . . . . . . . . . . . . . . . . Weapon . | . . . . . . . . . . . . . . . . . . . . . . . . . . . . . . . . . . Highest Loss Streak . | . . . . . . . . . . . . . . . . . . . . . . . . . . . . . . . . . . To Critical Strikes . | . . . . . . . . . . . . . . . . . . . . . . . . . . . . . . . . . . Average Slot Usage (%) 96 | . 96 100 100 100 96 99 100 100 100 100 100 100 100 100 100 100 100 100 100 100 100 98 94 100 100 100 85 89 94 94 89 89 88 Engine 3 | . 14 12 12 9 . . . . . . . 2 6 6 6 6 6 6 6 6 5 4 5 5 5 5 1 . . . . . . Core 2 | . . . . 1 8 7 7 7 7 7 7 3 . . . . . . . . . . . 5 5 3 . . . . . . . Reactor 1 | . . . . . . . . . . . . . . . . . . . . . . . . . . 1 5 5 5 4 4 4 4 Hover 25 | . 6 25 25 22 33 29 28 28 28 28 28 26 26 26 26 25 25 25 25 25 23 22 22 22 22 22 22 21 29 29 27 27 27 Device 9 | . . . . . 5 14 10 7 7 7 7 6 6 6 6 10 12 12 12 12 17 15 11 11 11 11 10 10 10 9 12 12 7 Processor 23 | . 28 25 25 22 16 20 21 21 21 21 21 26 26 26 26 25 25 25 25 25 23 24 27 27 27 27 27 26 25 24 22 22 26 Hackware 10 | . . . . 11 8 7 10 14 14 14 14 13 13 13 13 12 12 12 12 12 11 11 11 11 11 11 11 10 10 9 9 9 8 Protection 1 | . . 11 12 11 8 1 . . . . . . . . . . . . . . . . . . . . . . . . . . . Ballistic Gun 11 | . 19 15 12 10 8 8 14 14 14 14 14 13 13 13 13 12 12 12 12 12 11 10 11 11 11 11 4 10 10 9 8 9 8 Ballistic Cannon 2 | . . . . . . 6 . . . . . . 2 6 5 5 4 5 5 6 5 3 5 4 5 5 1 5 4 4 4 3 4 Slashing Weapon 2 | . . . 5 7 7 . 7 7 7 7 7 6 3 . 1 . 1 . . . . 1 . . . . . . . . . . . Naked Turns . | . . . . . . . . . . . . . . . . . . . . . . . . . . . . . . . . . . Heaviest Build 71 | 5 8 9 9 17 15 26 23 22 22 22 22 27 35 35 35 35 35 35 37 37 39 39 60 46 46 57 63 63 63 68 67 71 66 Greatest Support 118 | 25 25 17 17 17 30 35 40 45 45 45 45 45 42 42 42 42 42 42 44 44 44 54 54 64 64 64 64 64 87 86 86 106 118 Greatest Overweight (x) 2 | . . . . . . . . . . . . . . . . . 1 . . . . . 1 . . . . . . . . . 2 Average Overweight (x) . | . . . . . . . . . . . . . . . . . . . . . . . . . . . . . . . . . . Largest Inventory Capacity 9 | 5 5 5 5 5 5 6 6 7 7 7 7 7 7 7 7 7 8 8 8 8 8 8 8 8 8 8 8 8 8 8 9 9 9 Average Capacity 7 | 5 5 5 5 5 5 5 6 6 7 7 7 7 7 7 7 7 7 8 8 8 8 8 8 8 8 8 8 8 8 8 8 9 9 Most Carried 9 | 3 5 5 5 5 5 6 6 7 7 6 7 7 7 7 7 7 8 7 8 8 8 8 8 8 7 8 8 8 8 8 9 9 9 Average Carried 6 | 1 4 4 4 4 4 5 5 6 6 6 6 6 6 7 7 6 7 6 7 7 7 7 8 7 7 7 7 8 7 7 8 7 8 Final Capacity 9 | 5 5 5 5 5 5 6 6 7 7 7 7 7 7 7 7 7 8 8 8 8 8 8 8 8 8 8 8 8 8 8 9 9 9 Final Carried 9 | 3 5 5 5 5 5 5 6 7 6 6 7 7 7 7 7 7 7 6 8 8 8 8 8 7 7 8 8 8 7 8 9 6 8 Class Distribution -------------------- 41% | Hacker-Mutant 24% | Wizard-Gunner 24% | Wizard-Sprinter 7% | Hacker-Gunner Dominant Class ---------------- Hacker-Mutant | -10/Materials Hacker-Mutant | -10/Mines Hacker-Mutant | -10/Exiles Hacker-Mutant | -9/Mines Hacker-Mutant | -8/Materials Hacker-Mutant | -8/Garrison Hacker-Mutant | -8/Materials Hacker-Mutant | -8/Garrison Hacker-Mutant | -8/Materials Hacker-Mutant | -8/Garrison Hacker-Mutant | -8/Materials Hacker-Mutant | -7/Factory Hacker-Mutant | -7/Lower Caves Hacker-Gunner | -7/Lower Caves Hacker-Gunner | -7/Data Miner Hacker-Gunner | -6/Proximity Caves Hacker-Gunner | -6/Factory Wizard-Gunner | -6/Garrison Wizard-Gunner | -5/Factory Wizard-Gunner | -5/Upper Caves Wizard-Gunner | -5/Upper Caves Wizard-Gunner | -5/Warlord Wizard-Gunner | -4/Proximity Caves Wizard-Gunner | -4/Factory Wizard-Gunner | -4/Upper Caves Wizard-Gunner | -4/Upper Caves Wizard-Gunner | -4/Zhirov Wizard-Gunner | -3/Proximity Caves Wizard-Sprinter | -3/Research Wizard-Sprinter | -3/Testing Wizard-Sprinter | -2/Research Wizard-Sprinter | -2/Quarantine Wizard-Sprinter | -2/Section 7 Resources | -11 -10 -10 -10 -9 -8 -8 -8 -8 -8 -8 -8 -7 -7 -7 -7 -6 -6 -6 -5 -5 -5 -5 -4 -4 -4 -4 -4 -3 -3 -3 -2 -2 -2 ----------- Run | Yrd Mat Min Exi Min Mat Gar Mat Gar Mat Gar Mat Fac Low Low Dat Pro Fac Gar Fac Upp Upp War Pro Fac Upp Upp Zhi Pro Res Tes Res Qua Sec Matter Collected 17208 | 278 240 146 10 146 201 540 322 427 511 409 314 657 211 18 . 572 868 926 758 218 316 836 367 657 46 136 60 318 810 1894 1376 1403 1217 Remotely . | . . . . . . . . . . . . . . . . . . . . . . . . . . . . . . . . . . Salvage Created 33425 | 152 568 234 . 607 873 719 789 1275 1748 1069 854 2145 302 105 . 622 1476 1124 1357 320 516 1224 793 1687 . 572 478 989 1758 2812 2729 1391 2137 Parts 1977 | 9 27 18 . 40 44 39 78 88 109 62 67 142 12 2 . 50 108 53 97 20 25 60 34 85 4 11 2 50 95 178 156 85 127 Haulers Intercepted 21 | . 2 . . . 1 . . . 5 . 3 6 . . . . . . 1 . . . . . . . . . . . 1 . 2 Recyclers Shooed 4 | . 2 1 . . 1 . . . . . . . . . . . . . . . . . . . . . . . . . . . . Parts Field Recycled . | . . . . . . . . . . . . . . . . . . . . . . . . . . . . . . . . . . Retrieved Matter . | . . . . . . . . . . . . . . . . . . . . . . . . . . . . . . . . . . Parts Self-Destructed . | . . . . . . . . . . . . . . . . . . . . . . . . . . . . . . . . . . Prevented . | . . . . . . . . . . . . . . . . . . . . . . . . . . . . . . . . . . Kills | -11 -10 -10 -10 -9 -8 -8 -8 -8 -8 -8 -8 -7 -7 -7 -7 -6 -6 -6 -5 -5 -5 -5 -4 -4 -4 -4 -4 -3 -3 -3 -2 -2 -2 ------- Run | Yrd Mat Min Exi Min Mat Gar Mat Gar Mat Gar Mat Fac Low Low Dat Pro Fac Gar Fac Upp Upp War Pro Fac Upp Upp Zhi Pro Res Tes Res Qua Sec Combat Hostiles Destroyed 452 | . 7 4 . 7 16 14 18 26 24 24 17 23 5 1 . 15 24 18 14 6 8 18 7 19 2 6 . 13 17 26 33 21 19 Melee 24 | . . . . 5 11 . . . . 3 . 3 . . . . . 2 . . . . . . . . . . . . . . . Guns 313 | . 7 2 . 2 2 8 18 26 24 21 17 20 4 1 . 10 15 13 7 4 5 8 5 12 1 3 . 6 15 16 16 12 13 Cannons 110 | . . . . . . 6 . . . . . . 1 . . 5 9 3 7 2 3 10 2 7 1 3 . 7 2 10 17 9 6 AOE 5 | . . 2 . . 3 . . . . . . . . . . . . . . . . . . . . . . . . . . . . Classes Destroyed 28 | 2 5 2 . 2 . 2 1 1 1 . . . . . . 1 3 . . . . 1 . 1 . 1 . . . 2 2 1 . Worker 31 | . . 2 . 1 . . 2 . 2 . . 6 . . . . 4 . 5 . . . . . . . . . 2 2 4 . 1 Builder 14 | . . 1 . 3 1 . . . . . 1 1 . . . . 1 . . . . . . 2 . . . . . 2 1 . 1 Tunneler 6 | 3 . . . 2 . . . . . . . 1 . . . . . . . . . . . . . . . . . . . . . Hauler 21 | . 2 . . . 1 . . . 5 . 3 6 . . . . . . 1 . . . . . . . . . . . 1 . 2 Recycler 17 | 1 3 2 . 1 1 . . . 1 . . 4 . . . . . . . . . . . 1 . . . . . . 2 . 1 Carrier 2 | . . . . . . . . . . . . . . . . . . . . . . . . 1 . . . . . . 1 . . Minesweeper 3 | . . . . . . . . . . . . . . . . . . . . . . . . . . 1 . 2 . . . . . Mechanic 7 | . 1 . . . . . . . 2 . . 1 . . . . . . . . . . . . . . . . . 1 1 . 1 Operator 4 | . . . . . . . 1 . 1 . 1 . . . . . . . 1 . . . . . . . . . . . . . . Watcher 41 | . 3 . . . 1 2 2 . 5 . 2 5 . . . . 1 . 5 . . . . 2 . . . . 4 3 1 3 2 Swarmer 81 | . 6 2 . . . . 7 10 4 3 6 3 . . . 5 7 5 . . 6 . . 3 2 2 . 6 3 . 1 . . Cutter 2 | . . . . . . 2 . . . . . . . . . . . . . . . . . . . . . . . . . . . Grunt 147 | . 1 2 . 5 12 7 . 3 7 14 7 9 . . . 6 8 6 6 5 1 7 3 6 . 1 . 7 . 8 3 9 4 Brawler 12 | . . . . 1 1 . . . 1 1 . 1 1 . . . . . 1 . . . 1 . . 2 . . . 1 . 1 . Duelist 7 | . . . . . . . . . 2 1 1 . 1 . . 1 . 1 . . . . . . . . . . . . . . . Protector 4 | . . . . . . . . . . . . . . . . . 1 . . . . 2 . . . . . . . 1 . . . Researcher 18 | . . . . . . . . . . . . . . . . . . . . . . . . . . . . . . 11 . . 7 Sentry 87 | . . . . 1 3 4 9 10 10 3 3 5 . 1 . 1 5 2 2 1 1 . 1 3 . 1 . . 6 3 7 . 5 Demolisher 3 | . . . . . . . . . . . . . . . . . . . . . . . . . . . . . . . 3 . . Specialist 4 | . . . . . . . . . . . . . . . . . 1 2 . . . . 1 . . . . . . . . . . Hunter 47 | . . . . . . 1 2 . . 2 . 2 . . . . 1 1 5 . . 3 . 5 . . . . 6 4 8 3 4 Programmer 43 | . . . . . . . . 3 . . . 3 . . . 1 1 2 2 . 1 3 1 2 . . . . 2 6 6 7 3 Heavy 1 | . . . . . . . . . . . . . . . . . 1 . . . . . . . . . . . . . . . . Behemoth 5 | . . . . . . . . . . . . . . . . 1 . . . . . 2 1 . . . . . . . 1 . . Tracker 1 | . . . . . . . . . . . . . . . . . . . . . . . . . . . . . . . . . 1 Combat Programmer 2 | . . . . . . . . . . . . . . . . . . . . . . . . . . . . . . . . . 2 Striker 8 | . . . . . . . . . . . . . . . . . . . . . . 1 . . . . . . . 2 5 . . Executioner 2 | . . . . . . . . . . . . . . . . . . . . . . . . . . . . . . . 2 . . Alpha 7 1 | . . . . . . . . . . . . . . . . . . . . . . . . . . . . . . 1 . . . Fortress 1 | . . . . . . . . . . . . . . . . . . . . . . . . . . . . . . . . 1 . Wasp 3 | . . . . . . . . . . . . . 2 . . . . . 1 . . . . . . . . . . . . . . Thug 1 | . . . . . . . . . . . . . 1 . . . . . . . . . . . . . . . . . . . . Best Kill Streak 10 | 4 4 6 . 4 5 6 7 10 10 5 8 10 3 1 . 4 7 5 4 3 3 6 5 7 2 6 . 6 8 8 8 6 8 Combat Bots Only 10 | . 2 2 . 2 4 4 4 10 5 5 5 9 3 1 . 4 7 5 2 3 3 6 5 3 2 6 . 6 8 4 8 6 6 Max Kills in Single Turn 4 | 1 2 2 . 1 2 1 2 2 2 2 2 2 2 1 . 2 2 2 3 1 1 2 2 3 2 3 . 2 3 2 4 2 2 Gunslinging 1 | . . . . . . . . . . 1 . . 1 . . . . . . . . . . . . . . . . . . . . Exploded 2 | . . 2 . . 1 . . . . . . . . . . . . . . . . . . . . . . . . . . . . Melee 1 | . . . . 1 1 . . . . 1 . 1 . . . . . 1 . . . . . . . . . . . . . . . Uniques/NPCs Destroyed . | . . . . . . . . . . . . . . . . . . . . . . . . . . . . . . . . . . Combat | -11 -10 -10 -10 -9 -8 -8 -8 -8 -8 -8 -8 -7 -7 -7 -7 -6 -6 -6 -5 -5 -5 -5 -4 -4 -4 -4 -4 -3 -3 -3 -2 -2 -2 -------- Run | Yrd Mat Min Exi Min Mat Gar Mat Gar Mat Gar Mat Fac Low Low Dat Pro Fac Gar Fac Upp Upp War Pro Fac Upp Upp Zhi Pro Res Tes Res Qua Sec Hostile Shots Fired 1597 | . 30 10 . 8 61 43 24 85 21 53 20 115 49 9 . 26 60 92 21 7 27 21 45 20 3 2 . 18 62 185 63 109 308 Missed 719 | . 7 5 . 6 14 15 18 43 9 22 13 58 27 7 . 13 27 37 7 3 13 11 22 11 1 1 . 10 24 85 32 60 118 Damage Taken 9095 | . 120 42 . 14 455 291 52 266 83 256 69 434 212 7 . 159 351 476 173 62 158 76 199 105 14 39 . 85 401 1095 401 853 2147 Core 7206 | . 96 31 . 10 364 230 42 210 61 205 52 343 163 5 . 121 284 375 135 49 122 57 158 82 10 31 . 66 327 877 322 681 1697 Absorbed by Shields 224 | . . . . . . . . . . . . . . . . . . . . . . 41 133 . . . . . . . . . 50 Redirected to Core 5966 | . 73 31 . 10 234 169 30 172 61 152 52 263 148 5 . 121 200 309 118 49 122 53 136 69 10 31 . 57 254 716 268 607 1446 Redirected to Shielding 26 | . . . . . 16 10 . . . . . . . . . . . . . . . . . . . . . . . . . . . Ignored by Resistances 8067 | . 81 26 . 9 287 209 47 235 81 235 68 393 182 8 . 138 319 419 155 47 139 108 323 89 15 22 . 85 361 884 400 770 1932 Core Remaining (%) 100 | 100 . . . 100 . . . . . . 100 . . . . 100 . 100 . . . . 100 . . . . 100 . 100 . . . Volleys Fired 1101 | 6 54 28 . 13 20 36 28 43 57 44 39 53 17 1 . 29 43 53 41 11 17 39 21 32 2 7 . 16 34 92 77 79 69 Largest 3 | 1 2 1 . 1 1 2 2 2 2 2 2 2 3 3 . 3 3 3 3 3 3 3 3 3 3 3 . 3 3 3 3 3 3 Hottest 136 | 20 60 100 . 30 30 106 68 68 68 68 68 68 131 131 . 131 131 131 136 136 136 136 136 136 136 136 . 136 136 136 130 130 130 Shots Fired 2625 | 6 73 28 . 13 20 71 56 86 108 87 69 101 36 3 . 87 123 141 116 31 51 103 63 96 6 21 . 48 102 275 205 205 195 Gun 1944 | 6 73 22 . 12 17 49 56 86 108 87 69 101 34 2 . 58 82 94 80 20 34 66 42 64 4 14 . 32 68 184 128 126 126 Cannon 660 | . . . . . . 22 . . . . . . 2 1 . 29 41 47 36 11 17 37 21 32 2 7 . 16 34 91 77 68 69 Launcher 18 | . . 3 . 1 3 . . . . . . . . . . . . . . . . . . . . . . . . . . 11 . Special 3 | . . 3 . . . . . . . . . . . . . . . . . . . . . . . . . . . . . . . Kinetic 2587 | 6 56 22 . 12 17 71 56 86 108 87 69 101 36 3 . 87 123 141 116 31 51 103 63 96 6 21 . 48 102 275 205 194 195 Thermal 21 | . 17 3 . . . . . . . . . . . . . . . . . . . . . . . . . . . . . 1 . Explosive 7 | . . 3 . 1 3 . . . . . . . . . . . . . . . . . . . . . . . . . . . . Electromagnetic . | . . . . . . . . . . . . . . . . . . . . . . . . . . . . . . . . . . Entropic 10 | . . . . . . . . . . . . . . . . . . . . . . . . . . . . . . . . 10 . Robot Hit Streak 70 | 3 18 42 . 54 66 24 23 26 39 22 37 32 12 13 . 27 66 34 43 25 23 32 24 51 6 20 . 28 39 51 70 47 44 Robot Miss Streak 3 | 1 2 . . . 1 1 1 2 1 1 2 2 1 . . 1 2 2 3 2 1 2 1 2 1 . . 1 1 1 2 1 1 Penetration Max 3 | . . . . . . 1 3 1 2 1 1 1 3 . . 1 2 1 2 1 1 3 2 2 1 1 . 1 2 1 3 1 1 Secondary Targets 13 | . . . . . . 1 . 4 . 2 1 4 1 . . . . . . . . . . . . . . . . . . . . Max Gunslinging Chain 1 | . . . . . . 1 . 1 . 1 1 1 1 . . . . . . . . . . . . . . . . . . . . Shots Hit Robots 2219 | 5 63 24 . 32 51 59 44 70 109 70 60 113 39 2 . 71 94 119 89 25 45 82 54 73 4 18 9 38 81 219 158 167 132 Core Hits 1215 | 4 23 13 . 15 34 26 25 35 49 35 32 66 20 2 . 37 62 54 60 16 23 43 19 48 5 11 4 22 42 113 101 84 92 Critical Kills 302 | . 1 . . . . . 6 4 8 5 4 10 1 1 . 11 25 13 23 6 5 14 6 25 2 6 . 14 20 34 24 12 22 Critical Parts Destroyed 357 | . 2 1 . . . 3 2 4 12 6 5 8 5 . . 14 18 30 20 1 15 28 10 25 1 8 . 8 19 47 26 21 18 Critical Strikes 766 | . 3 1 . 1 4 5 8 12 26 14 10 19 7 1 . 27 44 51 43 9 21 50 25 51 3 16 . 22 43 96 57 46 51 Destroy 722 | . 3 1 . . . 3 8 8 22 13 9 19 7 1 . 27 44 49 43 9 21 50 25 51 3 16 . 22 43 90 53 39 43 Blast 27 | . . . . . . 2 . . . . . . . . . . . . . . . . . . . . . . . 6 4 7 8 Sever 17 | . . . . 1 4 . . 4 4 1 1 . . . . . . 2 . . . . . . . . . . . . . . . Melee Attacks 409 | . . . 12 20 37 9 3 31 42 23 19 55 7 . . 5 14 31 2 1 . 54 . 1 . . 9 . 14 4 5 11 . Kinetic 11 | . . . . . . . . . . . . . . . . . . . . . . . . . . . . . . . . 11 . Impact . | . . . . . . . . . . . . . . . . . . . . . . . . . . . . . . . . . . Slashing 398 | . . . 12 20 37 9 3 31 42 23 19 55 7 . . 5 14 31 2 1 . 54 . 1 . . 9 . 14 4 5 . . Piercing . | . . . . . . . . . . . . . . . . . . . . . . . . . . . . . . . . . . Sneak Attacks 42 | . . . . 7 3 1 2 . 7 1 3 16 . . . . . 1 . . . . . . . . . . . . . 1 . Combat Hostiles 3 | . . . . . . . . . . 1 . . . . . . . 1 . . . . . . . . . . . . . 1 . Follow-up Attacks . | . . . . . . . . . . . . . . . . . . . . . . . . . . . . . . . . . . Damage Inflicted 49401 | 65 782 389 . 1207 2255 1346 990 1801 3144 1655 1609 3526 1033 17 . 1065 1264 2014 1199 309 652 1379 807 1104 64 309 833 483 1145 3027 4465 6068 3395 Guns 20246 | 65 782 292 . 158 224 716 782 1266 1665 1447 1064 1535 531 17 . 439 764 792 609 194 349 637 379 627 43 167 . 254 524 1405 815 802 902 Cannons 16042 | . . . . . . 518 . . . . . . 37 . . 371 500 575 444 115 303 742 428 477 21 142 . 229 380 1566 3589 3112 2493 Explosions 2814 | . . 73 . 61 672 . . . . . . . . . . . . . 146 . . . . . . . . . . . . 1862 . Melee 10275 | . . . . 988 1359 112 208 535 1479 208 545 1991 465 . . 255 . 647 . . . . . . . . 833 . 241 56 61 292 . Ramming . | . . . . . . . . . . . . . . . . . . . . . . . . . . . . . . . . . . Kinetic 36427 | 65 629 292 . 158 224 1234 782 1266 1665 1447 1064 1535 568 17 . 810 1264 1367 1053 309 652 1379 807 1104 64 309 . 483 904 2971 4404 4206 3395 Thermal 424 | . 153 24 . . . . . . . . . . . . . . . . . . . . . . . . . . . . . 247 . Explosive 952 | . . 73 . 61 672 . . . . . . . . . . . . . 146 . . . . . . . . . . . . . . Electromagnetic . | . . . . . . . . . . . . . . . . . . . . . . . . . . . . . . . . . . Impact . | . . . . . . . . . . . . . . . . . . . . . . . . . . . . . . . . . . Slashing 9983 | . . . . 988 1359 112 208 535 1479 208 545 1991 465 . . 255 . 647 . . . . . . . . 833 . 241 56 61 . . Piercing . | . . . . . . . . . . . . . . . . . . . . . . . . . . . . . . . . . . Entropic 1615 | . . . . . . . . . . . . . . . . . . . . . . . . . . . . . . . . 1615 . Highest Corruption 4 | . . . . . . . . . . . 2 . . . . . . . . . . . 4 1 1 1 1 1 2 4 . 2 2 Average Corruption 1 | . . . . . . . . . . . 1 . . . . . . . . . . . 4 1 1 1 1 1 1 2 . 1 2 Corruption Purged 6 | . . . . . . . . . . . . . . . . . . . . . . . . . . . . . . 6 . . . Corruption Blocked 41 | . . . . . . . . . . . . . . . . . . . . . . . . . . . . . . 15 . . 26 Effects 51 | . . . . . . . . . . . 4 . . . . . . . . . . . . 2 . 1 . 4 2 19 . 6 13 Message Errors 15 | . . . . . . . . . . . . . . . . . . . . . . . . . . . . 2 . 6 . 2 5 Matter Fused 11 | . . . . . . . . . . . . . . . . . . . . . . . . 1 . . . . 1 5 . 3 1 Heat Flow Errors 6 | . . . . . . . . . . . 2 . . . . . . . . . . . . . . . . 1 . 2 . . 1 Energy Discharges 2 | . . . . . . . . . . . . . . . . . . . . . . . . . . 1 . . . . . . 1 Parts Fused 2 | . . . . . . . . . . . 1 . . . . . . . . . . . . . . . . . . . . 1 . Data Loss (minor) 5 | . . . . . . . . . . . . . . . . . . . . . . . . . . . . 1 . 2 . . 2 Data Loss (major) 4 | . . . . . . . . . . . . . . . . . . . . . . . . 1 . . . . . 2 . . 1 Misfires 2 | . . . . . . . . . . . . . . . . . . . . . . . . . . . . . . 1 . . 1 Alerts 2 | . . . . . . . . . . . . . . . . . . . . . . . . . . . . . 1 1 . . . Weapon Failures 2 | . . . . . . . . . . . 1 . . . . . . . . . . . . . . . . . . . . . 1 Overload Shots . | . . . . . . . . . . . . . . . . . . . . . . . . . . . . . . . . . . Overflow Damage 1137 | . . 13 . 160 112 61 . 6 21 . 164 185 118 . . 32 . 66 . . . . 18 . . . 44 1 7 . 99 30 . Projectiles 181 | . . . . . . 34 . . . . . . . . . . . . . . . . 18 . . . . 1 . . 98 30 . Explosions 23 | . . 13 . . 10 . . . . . . . . . . . . . . . . . . . . . . . . . . . . Melee 933 | . . . . 160 102 27 . 6 21 . 164 185 118 . . 32 . 66 . . . . . . . . 44 . 7 . 1 . . Knockbacks 82 | . . . . . . 4 . . . . . . 1 . . 2 4 7 3 . 3 1 . 3 . 1 . . 2 22 9 11 9 Impact . | . . . . . . . . . . . . . . . . . . . . . . . . . . . . . . . . . . Kinetic 78 | . . . . . . 4 . . . . . . 1 . . 2 3 7 3 . 3 1 . 2 . 1 . . 2 20 9 11 9 Secondary 4 | . . . . . . . . . . . . . . . . . 1 . . . . . . 1 . . . . . 2 . . . Self-Inflicted Damage 37 | . . . . . . . . . . . . . . . . . . . . . . . . . . . . . . . 37 . . Shots 1 | . . . . . . . . . . . . . . . . . . . . . . . . . . . . . . . 1 . . Rammed . | . . . . . . . . . . . . . . . . . . . . . . . . . . . . . . . . . . Targets Rammed . | . . . . . . . . . . . . . . . . . . . . . . . . . . . . . . . . . . Kicked . | . . . . . . . . . . . . . . . . . . . . . . . . . . . . . . . . . . Crushed . | . . . . . . . . . . . . . . . . . . . . . . . . . . . . . . . . . . Highest Temperature 278 | . . 8 . . 23 258 9 23 18 28 278 14 48 45 . 126 22 17 13 . . . . . . . . 54 . 223 3 197 231 Average Temperature 49 | . . 4 . . 10 67 4 6 5 10 116 4 16 27 . 49 8 6 13 . . . . . . . . 54 . 79 3 50 109 Received Heat Transfer 2267 | . 36 27 . 12 459 189 9 99 54 189 18 204 45 6 . 12 123 225 45 18 81 . 41 42 . . . 12 54 105 36 54 72 Siege Activations . | . . . . . . . . . . . . . . . . . . . . . . . . . . . . . . . . . . Robots Corrupted . | . . . . . . . . . . . . . . . . . . . . . . . . . . . . . . . . . . Combat Hostiles . | . . . . . . . . . . . . . . . . . . . . . . . . . . . . . . . . . . Parts Fried 6 | . . . . . . . . . . . . . . . . . 1 . . . . 3 . . . . . . . . 2 . . Impact Corruptions 2 | . . . . . . . . . . . . . . . . . . . . . . . . . . . . . . 2 . . . Robots Melted . | . . . . . . . . . . . . . . . . . . . . . . . . . . . . . . . . . . Combat Hostiles . | . . . . . . . . . . . . . . . . . . . . . . . . . . . . . . . . . . Parts Melted 3 | . . . . 1 . . . . . . . . . . . 1 . . . . . . . . . . . . . . . . 1 Heat Transferred 460 | . 350 50 . . . . . . . . . . . . . . . . . . . . . . . . . . . . . 60 . Parts Sabotaged . | . . . . . . . . . . . . . . . . . . . . . . . . . . . . . . . . . . Parts Stolen . | . . . . . . . . . . . . . . . . . . . . . . . . . . . . . . . . . . Parts Stripped 6 | . . . . . . . . . . . . . . . . . . . . . . . . . . . . . . . . 6 . Power Chain Reactions . | . . . . . . . . . . . . . . . . . . . . . . . . . . . . . . . . . . Alert | -11 -10 -10 -10 -9 -8 -8 -8 -8 -8 -8 -8 -7 -7 -7 -7 -6 -6 -6 -5 -5 -5 -5 -4 -4 -4 -4 -4 -3 -3 -3 -2 -2 -2 ------- Run | Yrd Mat Min Exi Min Mat Gar Mat Gar Mat Gar Mat Fac Low Low Dat Pro Fac Gar Fac Upp Upp War Pro Fac Upp Upp Zhi Pro Res Tes Res Qua Sec Peak Influence 1186 | 20 192 151 . 198 450 391 515 861 486 712 413 357 . . . . 410 1186 610 . . . . 511 . . . . 323 614 835 280 540 Initial 462 | . 9 5 . . . 73 139 131 307 11 254 . . . . . 100 142 462 . . . . 33 . . . . 27 111 121 165 69 Average 285 | 5 60 64 . 67 238 295 274 569 192 488 166 69 . . . . 143 745 355 . . . . 263 . . . . 120 371 551 112 228 Maximum Alert Level 4 | . . . . . 2 1 2 3 2 3 2 1 . . . . 2 4 2 . . . . 2 . . . . 1 2 3 1 2 Low Security (%) 47 | 100 100 100 . 100 35 14 25 15 56 11 60 91 . . . . 79 4 18 . . . . 28 . . . . 73 8 5 82 55 Level 1 24 | . . . . . 51 85 51 19 36 25 36 8 . . . . 14 11 45 . . . . 57 . . . . 26 35 8 17 15 Level 2 19 | . . . . . 12 . 23 13 7 36 3 . . . . . 6 18 35 . . . . 14 . . . . . 55 84 . 28 Level 3 7 | . . . . . . . . 50 . 27 . . . . . . . 46 . . . . . . . . . . . . 1 . . Level 4 1 | . . . . . . . . . . . . . . . . . . 18 . . . . . . . . . . . . . . . Level 5 . | . . . . . . . . . . . . . . . . . . . . . . . . . . . . . . . . . . High Security . | . . . . . . . . . . . . . . . . . . . . . . . . . . . . . . . . . . Max Security . | . . . . . . . . . . . . . . . . . . . . . . . . . . . . . . . . . . Squads Dispatched 62 | . . . . . 4 . 2 . . . 1 4 . . . . 6 . 7 . . . . 3 . . . . 1 9 1 5 19 Investigation 9 | . . . . . 1 . . . . . . 2 . . . . . . 3 . . . . . . . . . . 1 . 2 . Extermination 12 | . . . . . . . . . . . . 2 . . . . 1 . 1 . . . . 1 . . . . . 2 . 3 2 Reinforcement 21 | . . . . . 1 . 2 . . . 1 . . . . . 3 . 3 . . . . 2 . . . . . 4 1 . 4 Assault 3 | . . . . . . . . . . . . . . . . . . . . . . . . . . . . . . 2 . . 1 Garrison 8 | . . . . . 2 . . . . . . . . . . . 2 . . . . . . . . . . . 1 . . . 3 Intercept 9 | . . . . . . . . . . . . . . . . . . . . . . . . . . . . . . . . . 9 Searches Triggered . | . . . . . . . . . . . . . . . . . . . . . . . . . . . . . . . . . . Construction Impeded 4 | . . . . . 1 . 1 . . . . . . . . . . . 1 . . . . 1 . . . . . . . . . Haulers Reinforced 6 | . . . . . . . . . . . . . . . . . 2 . 1 . . . . 1 . . . . . 1 . . 1 Active Scanning Responses . | . . . . . . . . . . . . . . . . . . . . . . . . . . . . . . . . . . Cargo Convoy Interrupts 1 | . . . . . . . . . . . . . . . . . 1 . . . . . . . . . . . . . . . . Stealth | -11 -10 -10 -10 -9 -8 -8 -8 -8 -8 -8 -8 -7 -7 -7 -7 -6 -6 -6 -5 -5 -5 -5 -4 -4 -4 -4 -4 -3 -3 -3 -2 -2 -2 --------- Run | Yrd Mat Min Exi Min Mat Gar Mat Gar Mat Gar Mat Fac Low Low Dat Pro Fac Gar Fac Upp Upp War Pro Fac Upp Upp Zhi Pro Res Tes Res Qua Sec Distress Signals 32 | . 1 . . . 1 1 2 . 3 . 1 1 . . . . 2 . 2 . . 1 . . . . . . . 4 8 . 5 Communications Jammed . | . . . . . . . . . . . . . . . . . . . . . . . . . . . . . . . . . . Distress Signals . | . . . . . . . . . . . . . . . . . . . . . . . . . . . . . . . . . . Times Spotted 657 | . 10 4 . 7 22 19 15 24 28 25 24 33 13 1 . 12 27 36 27 11 9 59 11 22 3 7 . 13 17 48 39 29 62 Peak Tracking Total 21 | . 2 2 . 2 7 3 4 8 4 5 4 5 9 1 . 2 8 5 4 6 6 21 9 3 3 7 . 5 7 6 7 3 18 Tactical Retreats 28 | . . . . . 2 . 1 1 1 1 . 1 . . . 2 . . . 1 1 1 . 1 . . . 1 . 1 2 7 4 Traps | -11 -10 -10 -10 -9 -8 -8 -8 -8 -8 -8 -8 -7 -7 -7 -7 -6 -6 -6 -5 -5 -5 -5 -4 -4 -4 -4 -4 -3 -3 -3 -2 -2 -2 ------- Run | Yrd Mat Min Exi Min Mat Gar Mat Gar Mat Gar Mat Fac Low Low Dat Pro Fac Gar Fac Upp Upp War Pro Fac Upp Upp Zhi Pro Res Tes Res Qua Sec Traps Triggered 30 | . . . . . . 1 1 9 2 4 2 . . . . . . 7 . . . . . . . . . . . 1 . . 3 Indirectly . | . . . . . . . . . . . . . . . . . . . . . . . . . . . . . . . . . . Trap Hack Attempts . | . . . . . . . . . . . . . . . . . . . . . . . . . . . . . . . . . . Triggered . | . . . . . . . . . . . . . . . . . . . . . . . . . . . . . . . . . . Disarmed 11 | . 1 . . . . . . . . . . 10 . . . . . . . . . . . . . . . . . . . . . Reprogrammed 28 | . . . . . . . 5 . 3 . 2 8 . . . . 4 . . . . . . . . . . . . . . . 6 Reused 1 | . . . . . . . . . 1 . . . . . . . . . . . . . . . . . . . . . . . . Traps Extracted . | . . . . . . . . . . . . . . . . . . . . . . . . . . . . . . . . . . Installed 7 | . . . . 3 . . . . . . . . . . . . . . . . . . . . . 4 . . . . . . . Triggered 10 | . . . . . . . . . 1 . . . . . . . . . . . . 6 . . . 3 . . . . . . . Machines | -11 -10 -10 -10 -9 -8 -8 -8 -8 -8 -8 -8 -7 -7 -7 -7 -6 -6 -6 -5 -5 -5 -5 -4 -4 -4 -4 -4 -3 -3 -3 -2 -2 -2 ---------- Run | Yrd Mat Min Exi Min Mat Gar Mat Gar Mat Gar Mat Fac Low Low Dat Pro Fac Gar Fac Upp Upp War Pro Fac Upp Upp Zhi Pro Res Tes Res Qua Sec Machines Disabled 57 | . . . . 1 2 . . 1 2 2 2 6 . . . . 1 4 13 1 . . 1 . . . . . . 3 5 8 5 Max in Single Turn 2 | . . . . 1 2 . . 1 1 1 1 . . . . . . 1 2 1 . . . . . . . . . 1 1 1 1 Garrison Access 8 | . . . . . . . . . . . . 2 . . . . 1 . 1 . . . . . . . . . 1 . 3 . . Garrison Relay 6 | . . . . . . . . . . 2 . . . . . . . 4 . . . . . . . . . . . . . . . Machines Repaired . | . . . . . . . . . . . . . . . . . . . . . . . . . . . . . . . . . . Machines Dismantled . | . . . . . . . . . . . . . . . . . . . . . . . . . . . . . . . . . . Machines Sabotaged . | . . . . . . . . . . . . . . . . . . . . . . . . . . . . . . . . . . Overloaded Fab Kills . | . . . . . . . . . . . . . . . . . . . . . . . . . . . . . . . . . . Hacking | -11 -10 -10 -10 -9 -8 -8 -8 -8 -8 -8 -8 -7 -7 -7 -7 -6 -6 -6 -5 -5 -5 -5 -4 -4 -4 -4 -4 -3 -3 -3 -2 -2 -2 --------- Run | Yrd Mat Min Exi Min Mat Gar Mat Gar Mat Gar Mat Fac Low Low Dat Pro Fac Gar Fac Upp Upp War Pro Fac Upp Upp Zhi Pro Res Tes Res Qua Sec Machines Accessed 171 | . 7 2 5 1 3 3 3 4 14 3 7 21 . . 4 1 14 1 11 1 2 2 . 7 . 1 4 . 9 13 2 16 10 Terminals 115 | . 5 2 . 1 2 3 2 4 11 3 7 14 . . . 1 9 1 8 . 1 . . 6 . . . . 4 9 . 14 8 Fabricators 13 | . . . . . . . . . . . . 4 . . . . 2 . 2 . . . . 1 . . . . 3 1 . . . Repair Stations . | . . . . . . . . . . . . . . . . . . . . . . . . . . . . . . . . . . Recycling Units 4 | . 2 . . . . . . . 1 . . . . . . . 1 . . . . . . . . . . . . . . . . Scanalyzers 10 | . . . . . . . . . 1 . . 1 . . . . . . . . . . . . . . . . 1 3 . 2 2 Garrison Access 11 | . . . . . 1 . 1 . 1 . . 2 . . . . 2 . 1 . . . . . . . . . 1 . 2 . . Total Hacks 752 | . 30 7 50 3 13 7 20 9 61 4 49 93 . . 27 8 62 3 42 1 3 3 . 25 . 1 17 . 36 53 3 72 50 Successful 563 | . 18 5 50 3 10 5 15 7 52 3 33 78 . . 27 8 42 2 28 1 3 3 . 15 . 1 17 . 28 32 2 47 28 Failed 189 | . 12 2 . . 3 2 5 2 9 1 16 15 . . . . 20 1 14 . . . . 10 . . . . 8 21 1 25 22 Catastrophic 29 | . 1 . . . . . . . 1 . 4 2 . . . . 1 . 5 . . . . 4 . . . . 2 2 . 6 1 Database Lockouts . | . . . . . . . . . . . . . . . . . . . . . . . . . . . . . . . . . . Manual 376 | . 17 4 1 1 7 4 16 4 32 . 39 42 . . . . 37 2 26 . . 1 . 18 . . . . 18 31 . 47 29 Terminals 531 | . 24 7 . 3 12 7 19 9 54 4 49 60 . . . 8 47 3 32 . 2 . . 23 . . . . 20 40 . 66 42 Fabricators 63 | . . . . . . . . . . . . 27 . . . . 7 . 9 . . . . 2 . . . . 13 5 . . . Repair Stations . | . . . . . . . . . . . . . . . . . . . . . . . . . . . . . . . . . . Recycling Units 14 | . 6 . . . . . . . 4 . . . . . . . 4 . . . . . . . . . . . . . . . . Scanalyzers 30 | . . . . . . . . . 2 . . 4 . . . . . . . . . . . . . . . . 2 8 . 6 8 Garrison Access 14 | . . . . . 1 . 1 . 1 . . 2 . . . . 4 . 1 . . . . . . . . . 1 . 3 . . Terminal Hacks 359 | . 10 3 50 2 5 3 12 4 34 3 27 32 . . 27 8 22 1 10 1 3 3 . 7 . 1 17 . 11 16 . 30 17 Record 84 | . . . 49 . . . . . . . . . . . 11 8 . . . 1 2 2 . . . . 5 . . 1 . 5 . Part Schematic 27 | . 1 . . . . . 1 . . . . 4 . . 9 . . . 2 . . . . . . . 4 . 3 1 . 2 . Robot Schematic 7 | . . . . . . . . . . . . 1 . . 4 . 1 . 1 . . . . . . . . . . . . . . Robot Analysis 11 | . . . . . 1 . . . 3 . . . . . . . 1 . . . . . . . . . 4 . . 1 . . 1 Prototype ID Bank 35 | . 1 . . . 1 . . . 4 . 8 3 . . 3 . 2 . 1 . . . . . . . 4 . 1 1 . 5 1 Open Door 7 | . . . . . . . . 1 . 1 . . . . . . . . . . 1 1 . . . 1 . . . . . 1 1 Branch Access Points 6 | . . . . . 1 . . . . . 1 1 . . . . 1 . . . . . . 1 . . . . 1 . . . . Emergency Access Points 9 | . . . . . . 1 . 1 2 1 . . . . . . . 1 . . . . . . . . . . . . . 2 1 Machine Index 6 | . . . . . . . . . 1 . 1 1 . . . . 1 . 1 . . . . 1 . . . . . . . . . Terminal Index 4 | . . . . . . . . . . . . 1 . . . . 1 . . . . . . . . . . . . . . 1 1 Fabricator Index 1 | . . . . . . . . . . . . . . . . . . . . . . . . . . . . . 1 . . . . Recycling Unit Index 1 | . . . . . . . . . 1 . . . . . . . . . . . . . . . . . . . . . . . . Scanalyzer Index 2 | . . . . . . . . . 1 . . . . . . . . . . . . . . . . . . . . . . 1 . Garrison Index 1 | . . . . . . . . . . . . 1 . . . . . . . . . . . . . . . . . . . . . Alert Level 14 | . . . . . . . 1 . 1 . 3 2 . . . . 2 . 1 . . . . 1 . . . . 1 1 . 1 . Unreport Threat 55 | . 4 . . . 1 . 5 . 6 . 6 7 . . . . 5 . 4 . . . . 3 . . . . 3 1 . 6 4 Locate Traps 13 | . 1 . . . . . 1 . 4 . 1 1 . . . . 1 . . . . . . . . . . . . 2 . 1 1 Disarm Traps 4 | . 2 . . . . . . . . . . 2 . . . . . . . . . . . . . . . . . . . . . Reprogram Traps 12 | . . . . . . . 1 . 4 . 2 3 . . . . 1 . . . . . . . . . . . . . . . 1 Dispatch Records 2 | . . . . . . . . . 1 . 1 . . . . . . . . . . . . . . . . . . . . . . Security Status 1 | . . . . . . . . . . . 1 . . . . . . . . . . . . . . . . . . . . . . Patrol Status 2 | . . 1 . 1 . . . . . . . . . . . . . . . . . . . . . . . . . . . . . Transport Status 1 | . . . . . . . . . 1 . . . . . . . . . . . . . . . . . . . . . . . . Extermination Status 2 | . . . . . . . . . . . . 1 . . . . . . . . . . . . . . . . . . . . 1 Reinforcement Status 1 | . . . . . . . . . . . 1 . . . . . . . . . . . . . . . . . . . . . . Recall Investigation 4 | . . . . . . . . . . . . 1 . . . . . . . . . . . . . . . . . 1 . 1 1 Recall Extermination 6 | . . . . . . . . . . . . . . . . . 2 . . . . . . 1 . . . . . . . 1 2 Recall Reinforcements 5 | . . . . . . . 1 . . . 1 . . . . . . . . . . . . . . . . . . 2 . . 1 Recall Assault 1 | . . . . . . . . . . . . . . . . . . . . . . . . . . . . . . . . . 1 Registered Components 4 | . . . . . 1 . . . 1 . . . . . . . 1 . . . . . . . . . . . . . . 1 . Registered Prototypes 6 | . . . . . . . 1 . 1 . 1 1 . . . . 1 . . . . . . . . . . . . . . 1 . Zone Layout 15 | . 1 2 . 1 . . 1 . 3 . . 2 . . . . 2 . . . . . . . . . . . 1 1 . 1 . Garrison Registry 2 | . . . . . . 1 . . . 1 . . . . . . . . . . . . . . . . . . . . . . . Patrol Navigation 1 | . . . . . . . . 1 . . . . . . . . . . . . . . . . . . . . . . . . . Security Stations 2 | . . . . . . 1 . 1 . . . . . . . . . . . . . . . . . . . . . . . . . Derelict Proto ID Bank 1 | . . . 1 . . . . . . . . . . . . . . . . . . . . . . . . . . . . . . Protovariant Controls 4 | . . . . . . . . . . . . . . . . . . . . . . . . . . . . . . 4 . . . Fabricator Hacks 44 | . . . . . . . . . . . . 22 . . . . 4 . 8 . . . . 2 . . . . 6 2 . . . Load Schematic 22 | . . . . . . . . . . . . 11 . . . . 2 . 4 . . . . 1 . . . . 3 1 . . . Build 22 | . . . . . . . . . . . . 11 . . . . 2 . 4 . . . . 1 . . . . 3 1 . . . Repair Station Hacks . | . . . . . . . . . . . . . . . . . . . . . . . . . . . . . . . . . . Recycling Unit Hacks 5 | . 1 . . . . . . . 2 . . . . . . . 2 . . . . . . . . . . . . . . . . Retrieve Matter 2 | . . . . . . . . . 1 . . . . . . . 1 . . . . . . . . . . . . . . . . Retrieve Components 3 | . 1 . . . . . . . 1 . . . . . . . 1 . . . . . . . . . . . . . . . . Scanalyzer 26 | . . . . . . . . . 2 . . 4 . . . . . . . . . . . . . . . . 2 7 . 6 5 Insert Component 19 | . . . . . . . . . 1 . . 2 . . . . . . . . . . . . . . . . 1 6 . 6 3 Analyze 7 | . . . . . . . . . 1 . . 2 . . . . . . . . . . . . . . . . 1 1 . . 2 Garrison Access Hacks 11 | . . . . . 1 . 1 . 1 . . 2 . . . . 2 . 1 . . . . . . . . . 1 . 2 . . Unlock Access 4 | . . . . . 1 . 1 . 1 . . . . . . . 1 . . . . . . . . . . . . . . . . Seal Access 7 | . . . . . . . . . . . . 2 . . . . 1 . 1 . . . . . . . . . 1 . 2 . . Unauthorized Hacks 118 | . 7 2 . 1 4 2 2 3 13 . 6 18 . . . . 12 1 9 . . . . 6 . . . . 8 7 . 11 6 Terminals 105 | . 5 2 . 1 4 2 2 3 11 . 6 16 . . . . 8 1 8 . . . . 6 . . . . 6 7 . 11 6 Assimilate 7 | . . . . . 1 . . . . . . 3 . . . . . . . . . . . 1 . . . . 1 1 . . . Botnet 95 | . 5 2 . 1 2 2 2 3 11 . 6 12 . . . . 8 1 8 . . . . 5 . . . . 4 6 . 11 6 Operators 3 | . . . . . 1 . . . . . . 1 . . . . . . . . . . . . . . . . 1 . . . . Fabricators 7 | . . . . . . . . . . . . 2 . . . . 2 . 1 . . . . . . . . . 2 . . . . Fabnet 7 | . . . . . . . . . . . . 2 . . . . 2 . 1 . . . . . . . . . 2 . . . . Repair Stations . | . . . . . . . . . . . . . . . . . . . . . . . . . . . . . . . . . . Recycling Units 6 | . 2 . . . . . . . 2 . . . . . . . 2 . . . . . . . . . . . . . . . . Monitor 3 | . 1 . . . . . . . 1 . . . . . . . 1 . . . . . . . . . . . . . . . . Reject 3 | . 1 . . . . . . . 1 . . . . . . . 1 . . . . . . . . . . . . . . . . Scanalyzers . | . . . . . . . . . . . . . . . . . . . . . . . . . . . . . . . . . . Garrison Access . | . . . . . . . . . . . . . . . . . . . . . . . . . . . . . . . . . . Data Cores Recovered 5 | . . . . . . . . . 1 . . . . . . . 1 . 1 . . . . 1 . . . . . . . . 1 Used 3 | . . . . . . . . . . . . . . . . . 1 . . . . . . 1 . . . . . . . . 1 Hacking Detections 109 | . 7 1 . . 3 2 1 2 9 . 6 15 . . . . 9 1 10 . . . . 6 . . . . 6 12 1 9 9 Full Trace Events 9 | . 1 . . . 1 . . . . . . 2 . . . . . . 3 . . . . . . . . . . 1 . 1 . Feedback Events . | . . . . . . . . . . . . . . . . . . . . . . . . . . . . . . . . . . Feedback Blocked . | . . . . . . . . . . . . . . . . . . . . . . . . . . . . . . . . . . Robot Schematics Acquired 19 | . . . . . . . . . . . . 1 . . 4 . 1 . 1 . . . . . . . . . . 7 . . 5 Robots Built 18 | . . . . . . . . . . . . 8 . . . . 4 . 2 . . . . 2 . . . . 2 . . . . Authchips . | . . . . . . . . . . . . . . . . . . . . . . . . . . . . . . . . . . Time 894 | . . . . . . . . . . . . 464 . . . . 168 . 84 . . . . 134 . . . . 44 . . . . Total Robot Build Rating 76 | . . . . . . . . . . . . 24 . . . . 24 . 12 . . . . 8 . . . . 8 . . . . Part Schematics Acquired 61 | . 1 . . . . . 1 . 1 . . 5 . . 9 . . . 2 . . . . . . . 4 . 4 19 . 2 13 Parts Built 16 | . . . . . . . . . . . . 8 . . . . . . 4 . . . . . . . . . 2 2 . . . Authchips . | . . . . . . . . . . . . . . . . . . . . . . . . . . . . . . . . . . Time 977 | . . . . . . . . . . . . 491 . . . . . . 345 . . . . . . . . . 106 35 . . . Total Part Build Rating 81 | . . . . . . . . . . . . 33 . . . . . . 24 . . . . . . . . . 12 12 . . . Parts Repaired . | . . . . . . . . . . . . . . . . . . . . . . . . . . . . . . . . . . Time . | . . . . . . . . . . . . . . . . . . . . . . . . . . . . . . . . . . Parts Recycled . | . . . . . . . . . . . . . . . . . . . . . . . . . . . . . . . . . . Recycled Matter . | . . . . . . . . . . . . . . . . . . . . . . . . . . . . . . . . . . Retrieved Matter . | . . . . . . . . . . . . . . . . . . . . . . . . . . . . . . . . . . Retrieved Components 7 | . . . . . . . . . 1 . . . . . . . 6 . . . . . . . . . . . . . . . . Parts Scanalyzed 5 | . . . . . . . . . 1 . . 1 . . . . . . . . . . . . . . . . 1 1 . . 1 Part Schematics Acquired 5 | . . . . . . . . . 1 . . 1 . . . . . . . . . . . . . . . . 1 1 . . 1 Parts Damaged . | . . . . . . . . . . . . . . . . . . . . . . . . . . . . . . . . . . Bothacking | -11 -10 -10 -10 -9 -8 -8 -8 -8 -8 -8 -8 -7 -7 -7 -7 -6 -6 -6 -5 -5 -5 -5 -4 -4 -4 -4 -4 -3 -3 -3 -2 -2 -2 ------------ Run | Yrd Mat Min Exi Min Mat Gar Mat Gar Mat Gar Mat Fac Low Low Dat Pro Fac Gar Fac Upp Upp War Pro Fac Upp Upp Zhi Pro Res Tes Res Qua Sec Used RIF Installer . | . . . . . . . . . . . . . . . . . . . . . . . . . . . . . . . . . . Robots Hacked 29 | . . . . . . . . . . . . . . . . 1 4 2 3 2 . 2 . 1 1 . . 1 . . 9 1 2 Non-combat . | . . . . . . . . . . . . . . . . . . . . . . . . . . . . . . . . . . Combat 29 | . . . . . . . . . . . . . . . . 1 4 2 3 2 . 2 . 1 1 . . 1 . . 9 1 2 Robot Hacks Applied . | . . . . . . . . . . . . . . . . . . . . . . . . . . . . . . . . . . Relay Couplers Released 10 | . . . . . . . . . . 4 . . . . . . . 5 . . . . . . . . . . . . 1 . . Machine Destruction 10 | . . . . . . . . . . 4 . . . . . . . 5 . . . . . . . . . . . . 1 . . Fabnet Peak Effective % 8 | . . . . . . . . . . . . . . . . 6 6 6 8 8 8 8 5 5 5 5 5 1 1 1 6 6 6 Autooverrided 29 | . . . . . . . . . . . . . . . . 1 4 2 3 2 . 2 . 1 1 . . 1 . . 9 1 2 Robots Rewired 31 | . . . 3 . . 6 . . . 3 . . . . . . . 7 . 2 . 5 2 1 . 2 . . . . . . . Allies Hacked 6 | . . . . . . . . . . . . . . . . . . . . 1 2 . 1 . 1 1 . . . . . . . Hacks Repelled . | . . . . . . . . . . . . . . . . . . . . . . . . . . . . . . . . . . Allies | -11 -10 -10 -10 -9 -8 -8 -8 -8 -8 -8 -8 -7 -7 -7 -7 -6 -6 -6 -5 -5 -5 -5 -4 -4 -4 -4 -4 -3 -3 -3 -2 -2 -2 -------- Run | Yrd Mat Min Exi Min Mat Gar Mat Gar Mat Gar Mat Fac Low Low Dat Pro Fac Gar Fac Upp Upp War Pro Fac Upp Upp Zhi Pro Res Tes Res Qua Sec Total Allies 101 | . . 1 3 2 1 6 . 1 . 5 . 11 . . . 1 8 11 8 5 2 7 3 5 2 3 . 1 3 . 9 1 2 Largest Group 12 | . . 1 3 3 3 6 . 1 1 3 3 10 10 8 8 9 9 8 8 5 6 12 9 8 9 9 7 8 7 2 1 1 1 Highest-Rated Group 494 | . . 31 37 53 55 60 . 20 20 83 83 208 208 173 173 202 210 326 338 193 213 494 363 332 344 344 281 311 270 74 148 58 64 Highest-Rated Ally 148 | . . 31 21 31 31 15 . 20 20 39 39 39 26 26 26 29 54 54 54 85 54 65 65 65 49 49 49 49 49 37 148 58 64 Warlord Squad Rendezvous 3 | . . . . . . . . . . . . . . . . . . . 3 . . . . . . . . . . . . . . Dakka 1 | . . . . . . . . . . . . . . . . . . . 1 . . . . . . . . . . . . . . Pyro 1 | . . . . . . . . . . . . . . . . . . . 1 . . . . . . . . . . . . . . Chimera 1 | . . . . . . . . . . . . . . . . . . . 1 . . . . . . . . . . . . . . Total Orders 5 | . . . . . . . . . . . . 2 . . . . 1 . . . . . . . . . . . 2 . . . . STAY 2 | . . . . . . . . . . . . 1 . . . . 1 . . . . . . . . . . . . . . . . FOLLOW 2 | . . . . . . . . . . . . 1 . . . . . . . . . . . . . . . . 1 . . . . AID 1 | . . . . . . . . . . . . . . . . . . . . . . . . . . . . . 1 . . . . Ally Attacks 601 | . . . . 13 13 19 . . 2 12 35 18 27 . . 20 67 81 32 11 15 116 48 21 4 6 . 7 6 9 14 3 2 Total Damage 17630 | . . . . 197 213 259 . . . 329 545 681 676 . . 384 1833 2118 2712 357 378 3630 1072 496 15 177 . 95 235 591 457 111 69 Kills 130 | . . . . 1 3 3 . . . 2 6 3 9 . . 4 14 21 26 3 2 19 4 4 . . . 1 . 4 1 . . Allies Corrupted 2 | . . . . . . . . . . . . . . . . . . . 1 . . . . . . . . . . . . . 1 Allies Melted 2 | . . . . . . . . . . . . . . . . . . . . . . 1 . . . . . . 1 . . . . Intel | -11 -10 -10 -10 -9 -8 -8 -8 -8 -8 -8 -8 -7 -7 -7 -7 -6 -6 -6 -5 -5 -5 -5 -4 -4 -4 -4 -4 -3 -3 -3 -2 -2 -2 ------- Run | Yrd Mat Min Exi Min Mat Gar Mat Gar Mat Gar Mat Fac Low Low Dat Pro Fac Gar Fac Upp Upp War Pro Fac Upp Upp Zhi Pro Res Tes Res Qua Sec Robot Analysis Total 11 | . . . . . 1 . . . 3 . . . . . . . 1 . . . . . . . . . 4 . . 1 . . 1 Derelict Logs Recovered 13 | . . 2 . 1 . . . . . . . . 1 1 . 1 . . . 2 1 . . . 2 2 . . . . . . . Drone Launches . | . . . . . . . . . . . . . . . . . . . . . . . . . . . . . . . . . . Drone Recoveries . | . . . . . . . . . . . . . . . . . . . . . . . . . . . . . . . . . . Exploration | -11 -10 -10 -10 -9 -8 -8 -8 -8 -8 -8 -8 -7 -7 -7 -7 -6 -6 -6 -5 -5 -5 -5 -4 -4 -4 -4 -4 -3 -3 -3 -2 -2 -2 ------------- Run | Yrd Mat Min Exi Min Mat Gar Mat Gar Mat Gar Mat Fac Low Low Dat Pro Fac Gar Fac Upp Upp War Pro Fac Upp Upp Zhi Pro Res Tes Res Qua Sec Turns Passed 20890 | 112 656 500 444 440 404 799 390 934 831 750 422 1759 317 165 56 508 739 1134 761 251 315 772 502 463 123 363 168 463 673 1249 1217 1349 861 Spaces Moved 28876 | 80 544 738 585 448 387 960 530 1107 1012 759 524 1951 458 171 95 781 1142 1342 1402 319 433 818 229 599 236 353 171 464 1232 2087 2582 2718 1619 Core 21 | 10 . . . . . . . . . . . . . . . . . . . . . . . . . . . . . . . . 11 Treads . | . . . . . . . . . . . . . . . . . . . . . . . . . . . . . . . . . . Legs 368 | 70 298 . . . . . . . . . . . . . . . . . . . . . . . . . . . . . . . . Wheels . | . . . . . . . . . . . . . . . . . . . . . . . . . . . . . . . . . . Hover 28487 | . 246 738 585 448 387 960 530 1107 1012 759 524 1951 458 171 95 781 1142 1342 1402 319 433 818 229 599 236 353 171 464 1232 2087 2582 2718 1608 Flight . | . . . . . . . . . . . . . . . . . . . . . . . . . . . . . . . . . . Fastest Speed 16 | 50 56 56 56 56 48 48 48 48 48 48 48 38 38 38 38 38 38 38 38 38 38 38 38 38 38 38 38 38 33 33 33 16 16 Average Speed 40 | 111 91 56 56 56 48 48 48 48 48 48 48 41 38 38 38 38 38 38 38 38 38 38 38 38 38 38 38 38 33 33 33 32 30 Slowest Speed 180 | 120 120 56 56 56 56 48 52 48 52 48 48 48 38 38 38 38 102 38 38 38 38 38 88 38 38 38 38 38 38 33 33 33 180 Overloaded Moves 297 | . . . . . . . . . . . . . . . . . . . . . . . . . . . . . . . . 15 282 Propulsion Burnouts . | . . . . . . . . . . . . . . . . . . . . . . . . . . . . . . . . . . Robots Hopped 1 | . . . . . . . . . . . . . . . . . . . 1 . . . . . . . . . . . . . . Cave-ins Triggered . | . . . . . . . . . . . . . . . . . . . . . . . . . . . . . . . . . . Teleports 1 | . . . . . . . . . . . . . . . . . . . . . . . . . . . . . . . . . 1 Exploration Rate (%) 63 | 6 87 99 96 83 32 66 59 86 74 76 53 54 60 43 78 91 32 83 36 59 53 72 50 22 59 58 62 78 37 97 50 96 67 Regions Visited 33 Branch Regions 18 Pre-discovered Areas 9 | . . 1 1 1 . . . . . . . . 1 . 1 . . . . . . . . . . 1 3 . . . . . . Known Exits Taken 29 | 1 1 1 1 1 1 . 1 . 1 . 1 1 1 1 1 1 1 . 1 1 1 1 1 1 1 1 1 1 1 1 1 1 . Unknown Exits Taken . | . . . . . . . . . . . . . . . . . . . . . . . . . . . . . . . . . . Scrap Searched 23 | . . 1 . . . . . . . . . . 3 2 . 5 . . . 3 2 . 1 . 1 3 . 2 . . . . . Spaces Dug 161 | . . 9 . . 1 2 . 10 6 9 9 21 . . . . 14 13 2 . . 45 . 1 . . . . 10 1 1 3 4 Terrain Destroyed 1478 | . . 23 . 8 45 4 17 11 31 11 23 32 9 . . . 14 15 21 2 4 47 4 5 . 2 . 6 14 29 53 998 50 Melee 148 | . . . . . 1 2 . 10 6 9 9 21 . . . . 14 13 2 . . 45 . 1 . . . . 10 1 1 3 . Projectile 242 | . . 2 . . . 2 17 1 25 . 14 10 8 . . . . . 2 1 3 2 3 4 . 1 . 4 2 17 47 27 50 AOE 1061 | . . 21 . 8 44 . . . . . . . . . . . . . 15 . . . . . . . . . . . 5 968 . Terrain Rammed . | . . . . . . . . . . . . . . . . . . . . . . . . . . . . . . . . . . Walls Destroyed . | . . . . . . . . . . . . . . . . . . . . . . . . . . . . . . . . . . Machines Disabled . | . . . . . . . . . . . . . . . . . . . . . . . . . . . . . . . . . . Actions | -11 -10 -10 -10 -9 -8 -8 -8 -8 -8 -8 -8 -7 -7 -7 -7 -6 -6 -6 -5 -5 -5 -5 -4 -4 -4 -4 -4 -3 -3 -3 -2 -2 -2 --------- Run | Yrd Mat Min Exi Min Mat Gar Mat Gar Mat Gar Mat Fac Low Low Dat Pro Fac Gar Fac Upp Upp War Pro Fac Upp Upp Zhi Pro Res Tes Res Qua Sec Total 35364 | 94 631 789 689 600 545 1222 606 1392 1206 1033 606 2747 557 268 113 920 1334 1807 1535 424 544 1117 594 759 264 565 261 714 1381 2435 2778 3005 1829 Wait 3784 | . 14 8 76 101 66 137 19 158 74 172 8 637 58 97 17 88 98 199 64 67 83 141 325 115 27 186 60 231 65 141 65 90 97 Move 28831 | 79 543 737 584 447 386 956 529 1104 1011 755 523 1950 457 170 94 780 1141 1339 1399 318 432 817 228 598 235 352 170 463 1231 2086 2581 2717 1619 Hop 1 | . . . . . . . . . . . . . . . . . . . 1 . . . . . . . . . . . . . . Pick Up 99 | 3 5 2 3 1 3 6 3 3 2 . 4 5 1 . . 2 1 . 6 4 1 4 . . . 1 3 . 2 14 2 15 3 Fast Attach 82 | 6 3 1 . 1 1 4 3 3 4 . . 1 . . . . 5 . . . . 12 2 . . 1 7 . 3 4 6 9 6 Attach 33 | . 1 1 . 1 3 1 . 1 . . . 2 . . . 1 2 . . . 1 1 . 1 . . 2 . . 2 . 12 1 Detach 27 | . . . . . . 1 . 2 . . . 2 . . . . 3 . . . . 3 . 1 . 1 1 . . 2 . 10 1 Swap 131 | . 3 3 1 8 8 15 4 . . . . 7 4 . 2 2 7 7 8 2 1 7 1 3 . . . . 16 15 6 . 1 Drop 144 | . 6 2 3 2 3 9 5 4 3 . 3 8 1 . . 1 5 1 6 4 1 16 1 . . 1 9 . 4 18 6 21 1 Fire 1101 | 6 54 28 . 13 20 36 28 43 57 44 39 53 17 1 . 29 43 53 41 11 17 39 21 32 2 7 . 16 34 92 77 79 69 Melee 409 | . . . 12 20 37 9 3 31 42 23 19 55 7 . . 5 14 31 2 1 . 54 . 1 . . 9 . 14 4 5 11 . Ram . | . . . . . . . . . . . . . . . . . . . . . . . . . . . . . . . . . . Kick . | . . . . . . . . . . . . . . . . . . . . . . . . . . . . . . . . . . Crush . | . . . . . . . . . . . . . . . . . . . . . . . . . . . . . . . . . . Escape Stasis 171 | . . . . . . 13 . 27 . 17 . . . . . . . 106 . . . . . . . . . . . 1 . . 7 Rewire 106 | . . . 10 . . 17 . . . 5 . . . . . . . 37 . 8 . 15 6 1 . 7 . . . . . . . Trap 7 | . . . . 3 . . . . . . . . . . . . . . . . . . . . . 4 . . . . . . . Miscellaneous 438 | . 2 7 . 3 18 18 12 16 13 17 10 27 12 . . 12 15 34 8 9 8 8 10 7 . 5 . 4 12 56 30 41 24 Route ------- -11/Scrapyard -10/Materials (discovered 5 exits: *Mat x3 / *Min x2) -10/Mines (discovered 3 exits: *Mat x2 / *Exi) -10/Exiles (discovered 2 exits: *Min x2) -9/Mines -8/Materials (discovered 2 exits: *Fac / Gar) -8/Garrison (discovered 3 exits: *Mat x3) -8/Materials (discovered 2 exits: *Fac / Gar) -8/Garrison (discovered 3 exits: *Mat x3) -8/Materials (discovered 3 exits: *Fac x2 / Gar) -8/Garrison (discovered 3 exits: *Mat x3) -8/Materials -7/Factory (discovered 5 exits: *Fac / Sto x2 / *Low x2) -7/Lower Caves -7/Lower Caves (discovered 2 exits: *Fac / *Dat) -7/Data Miner -6/Proximity Caves -6/Factory (discovered 7 exits: *Fac x2 / *Low x2 / Ext x2 / Gar) -6/Garrison (discovered 4 exits: *Fac x3 / *Fac) -5/Factory (discovered 2 exits: *Fac / *Upp) -5/Upper Caves -5/Upper Caves -5/Warlord -4/Proximity Caves -4/Factory (discovered 2 exits: *Upp x2) -4/Upper Caves -4/Upper Caves -4/Zhirov -3/Proximity Caves -3/Research (discovered 5 exits: Res x2 / Arm / *Tes x2) -3/Testing -2/Research (discovered 3 exits: *Acc / *Qua x2) -2/Quarantine (discovered 2 exits: *Acc / *Sec) -2/Section 7 (discovered 1 exit: *Acc) History --------- Turn | Location | Event 1 | -11/Scrapyard | Upgraded with Propulsion slot (x1) 1 | -11/Scrapyard | Upgraded with Utility slot (x1) 1 | -11/Scrapyard | Upgraded with Weapon slot (x1) 10 | -11/Scrapyard | Identified exit to Materials 10 | -11/Scrapyard | Discovered exit to Materials (range 17) 113 | -11/Scrapyard | Entered Materials 300 | -10/Materials | Build established: Hacker-Mutant 385 | -10/Materials | Identified exit to Materials 385 | -10/Materials | Discovered exit to Materials (range 17) 438 | -10/Materials | Identified exit to Mines 438 | -10/Materials | Discovered exit to Mines (range 7) 609 | -10/Materials | Discovered exit to Mines (range 8) 637 | -10/Materials | Discovered exit to Materials (range 17) 700 | -10/Materials | Discovered exit to Materials (range 5) 769 | -10/Materials | Entered Mines 771 | -10/Mines | Reached level 2 771 | -10/Mines | Upgraded with Utility slot (x1) 785 | -10/Mines | Learned location of Zion (-6) 791 | -10/Mines | Learned Materials emergency access door positions 873 | -10/Mines | Discovered exit to Materials (range 5) 886 | -10/Mines | Discovered exit to Materials (range 16) 955 | -10/Mines | Received a Mining Laser from a helpful Derelict 1267 | -10/Mines | Deemed a non-threat by the Exiles lab entrance 1267 | -10/Mines | Identified exit to Exiles 1267 | -10/Mines | Discovered exit to Exiles (range 5) 1269 | -10/Mines | Entered Exiles 1269 | -10/Exiles | Found Exiles lab destroyed 1278 | -10/Exiles | Identified exit to Mines 1278 | -10/Exiles | Discovered exit to Mines (range 17) 1383 | -10/Exiles | Discovered exit to Mines (range 16) 1445 | -10/Exiles | Opened EX-Vault 1449 | -10/Exiles | Found Chronowheel 1713 | -10/Exiles | Entered Mines 1713 | -9/Mines | Accompanied by 3 allies 1715 | -9/Mines | Reached level 3 1715 | -9/Mines | Upgraded with Utility slot (x1) 1898 | -9/Mines | Joined a pair of Derelicts in attacking an 0b10 outpost 1989 | -9/Mines | Found a hidden stash of uninstalled traps 2025 | -9/Mines | Identified exit to Materials 2025 | -9/Mines | Discovered exit to Materials (range 8) 2059 | -9/Mines | Learned location of Storage (-7) 2153 | -9/Mines | Entered Materials 2153 | -8/Materials | Accompanied by 2 allies 2155 | -8/Materials | Reached level 4 2155 | -8/Materials | Reached level 5 2155 | -8/Materials | Reached level 6 2155 | -8/Materials | Upgraded with Propulsion slot (x2) 2157 | -8/Materials | Upgraded with Utility slot (x1) 2158 | -8/Materials | Led the pair of lost Derelicts to an unsafe place 2266 | -8/Materials | Garrison activated, responded to threat 2289 | -8/Materials | Reached level 7 2391 | -8/Materials | Identified exit to Factory 2391 | -8/Materials | Discovered exit to Factory (range 16) 2455 | -8/Materials | Reached level 8 2494 | -8/Materials | Garrison activated, responded to threat 2555 | -8/Materials | Identified exit to Garrison 2557 | -8/Materials | Entered Garrison 2559 | -8/Garrison | Upgraded with Utility slot (x1) 2657 | -8/Garrison | Spotted B-75 Beast 2669 | -8/Garrison | Reached level 9 2728 | -8/Garrison | Triggered checkpoint 2833 | -8/Garrison | Identified exit to Materials 2833 | -8/Garrison | Discovered exit to Materials (range 8) 2909 | -8/Garrison | Discovered exit to Materials (range 52) 2909 | -8/Garrison | Discovered exit to Materials (range 23) 2909 | -8/Garrison | Discovered exit to Materials (range 32) 2995 | -8/Garrison | Attempted to access garrison exit controls, blocked by remote lockdown 3041 | -8/Garrison | Triggered checkpoint 3092 | -8/Garrison | Learned Materials security intel 3103 | -8/Garrison | Triggered checkpoint 3123 | -8/Garrison | Attempted to access garrison exit controls, blocked by remote lockdown 3174 | -8/Garrison | Lost 4 allies 3239 | -8/Garrison | Triggered checkpoint 3275 | -8/Garrison | Triggered checkpoint 3339 | -8/Garrison | Reached level 10 3344 | -8/Garrison | Upgraded with Weapon slot (x1) 3356 | -8/Garrison | Entered Materials 3476 | -8/Materials | Discovered exit to Factory (range 4) 3555 | -8/Materials | Reached level 11 3724 | -8/Materials | Identified exit to Garrison 3746 | -8/Materials | Entered Garrison 3862 | -8/Garrison | Triggered checkpoint 3952 | -8/Garrison | Identified exit to Materials 3952 | -8/Garrison | Discovered exit to Materials (range 11) 3970 | -8/Garrison | Triggered checkpoint 3974 | -8/Garrison | Reached level 12 4094 | -8/Garrison | Triggered checkpoint 4141 | -8/Garrison | Destroyed 10 combat bots 4231 | -8/Garrison | Discovered exit to Materials (range 17) 4301 | -8/Garrison | Discovered exit to Materials (range 8) 4317 | -8/Garrison | Learned Materials security intel 4355 | -8/Garrison | Rescued a captive Derelict 4366 | -8/Garrison | Triggered checkpoint 4392 | -8/Garrison | Attempted to access garrison exit controls, blocked by remote lockdown 4510 | -8/Garrison | Attempted to access garrison exit controls, blocked by remote lockdown 4536 | -8/Garrison | Triggered checkpoint 4680 | -8/Garrison | Entered Materials 4680 | -8/Materials | Accompanied by 1 ally 4829 | -8/Materials | Discovered exit to Factory (range 18) 4942 | -8/Materials | Reached level 13 5049 | -8/Materials | Discovered exit to Factory (range 3) 5435 | -8/Materials | Identified exit to Garrison 5511 | -8/Materials | Entered Garrison 5511 | -8/Garrison | Accompanied by 1 ally 5589 | -8/Garrison | Triggered checkpoint 5597 | -8/Garrison | Triggered checkpoint 5605 | -8/Garrison | Triggered checkpoint 5630 | -8/Garrison | Triggered checkpoint 5675 | -8/Garrison | Triggered checkpoint 5710 | -8/Garrison | Identified exit to Materials 5710 | -8/Garrison | Discovered exit to Materials (range 8) 5748 | -8/Garrison | Discovered exit to Materials (range 19) 5785 | -8/Garrison | Triggered checkpoint 5800 | -8/Garrison | Garrison Relay disabled 5812 | -8/Garrison | Reached level 14 5857 | -8/Garrison | Discovered exit to Materials (range 8) 5867 | -8/Garrison | Discovered exit to Materials (range 70) 5867 | -8/Garrison | Discovered exit to Materials (range 70) 5867 | -8/Garrison | Discovered exit to Materials (range 6) 5893 | -8/Garrison | Triggered checkpoint 5978 | -8/Garrison | Garrison Relay disabled 5992 | -8/Garrison | Rescued a captive Derelict 5993 | -8/Garrison | Rescued a captive Derelict 6041 | -8/Garrison | Attempted to access garrison exit controls, blocked by remote lockdown 6139 | -8/Garrison | Attempted to access garrison exit controls, blocked by remote lockdown 6261 | -8/Garrison | Entered Materials 6261 | -8/Materials | Accompanied by 3 allies 6529 | -8/Materials | Discovered exit to Factory (range 20) 6683 | -8/Materials | Entered Factory 6683 | -7/Factory | Accompanied by 2 allies 6685 | -7/Factory | Reached level 15 6685 | -7/Factory | Upgraded with Utility slot (x1) 6720 | -7/Factory | Identified exit to Storage 6720 | -7/Factory | Identified exit to Lower Caves 6894 | -7/Factory | Fabricated Imp. Salvage Targeting Computer (x2) 6967 | -7/Factory | Fabricated Cld. Airjet? 7113 | -7/Factory | Destroyed 9 combat bots 7200 | -7/Factory | Fabricated Cld. Airjet (x1) 7225 | -7/Factory | Fabricated Cld. Airjet (x1) 7296 | -7/Factory | Reached level 16 7300 | -7/Factory | Fabricated Cld. Airjet? 7599 | -7/Factory | Fabricated Imp. Reaction Control System (x1) 7783 | -7/Factory | Identified exit to Factory 7783 | -7/Factory | Discovered exit to Factory (range 6) 7896 | -7/Factory | Fabricated H-55 Commando? 8034 | -7/Factory | Fabricated Enh. Nuclear Core (x1) 8182 | -7/Factory | Fabricated H-55 Commando (x2) 8298 | -7/Factory | Fabricated H-55 Commando (x2) 8414 | -7/Factory | Fabricated H-55 Commando (x2) 8442 | -7/Factory | Entered Lower Caves 8442 | -7/Lower Caves | Accompanied by 10 allies 8443 | -7/Lower Caves | Encountered a Warlord checkpoint 8446 | -7/Lower Caves | Learned location of 1 exit from Factory 8448 | -7/Lower Caves | Met a Warlord Commander 8449 | -7/Lower Caves | Learned location of Warlord (-5) 8450 | -7/Lower Caves | Warlord Commander delivered Encrypted Comm Array 8451 | -7/Lower Caves | Found Encrypted Comm Array 8514 | -7/Lower Caves | Ambushed by wild Derelicts 8569 | -7/Lower Caves | Attracted the attention of an 0b10 outpost 8729 | -7/Lower Caves | Identified exit to Lower Caves 8729 | -7/Lower Caves | Discovered exit to Lower Caves (range 14) 8759 | -7/Lower Caves | Entered another Lower Caves area 8759 | -7/Lower Caves | Accompanied by 8 allies 8780 | -7/Lower Caves | Discovered exit to Factory (range 2) 8825 | -7/Lower Caves | Encountered a Warlord checkpoint 8827 | -7/Lower Caves | Identified exit to Data Miner 8827 | -7/Lower Caves | Discovered exit to Data Miner (range 14) 8830 | -7/Lower Caves | Learned Factory stockpile data 8908 | -7/Lower Caves | Build established: Hacker-Gunner 8924 | -7/Lower Caves | Entered Data Miner 8924 | -7/Data Miner | Accompanied by 8 allies 8924 | -7/Data Miner | Identified exit to Proximity Caves 8924 | -7/Data Miner | Discovered exit to Proximity Caves (range 6) 8930 | -7/Data Miner | Met Data Miner 8930 | -7/Data Miner | Reached level 17 8938 | -7/Data Miner | Learned location of Section 7 (-2) 8938 | -7/Data Miner | Acquired the access code to Warlord's prototype stash 8945 | -7/Data Miner | Received God Mode back door access code from Data Miner 8980 | -7/Data Miner | Entered Proximity Caves 8980 | -6/Proximity Caves | Accompanied by 8 allies 9082 | -6/Proximity Caves | Learned 6 Upper Caves zone layouts 9082 | -6/Proximity Caves | Learned Research trap positions 9082 | -6/Proximity Caves | Learned Research emergency access door positions 9082 | -6/Proximity Caves | Learned Research stockpile data 9082 | -6/Proximity Caves | Learned Extension garrison access intel 9090 | -6/Proximity Caves | Reached level 18 9097 | -6/Proximity Caves | Upgraded with Utility slot (x1) 9114 | -6/Proximity Caves | Learned 4 Factory zone layouts 9346 | -6/Proximity Caves | Spotted B-75 Beast 9396 | -6/Proximity Caves | Destroyed B-75 Beast 9443 | -6/Proximity Caves | Discovered exit to Factory (range 14) 9488 | -6/Proximity Caves | Entered Factory 9488 | -6/Factory | Accompanied by 8 allies 9489 | -6/Factory | Identified exit to Factory 9530 | -6/Factory | Reached level 19 9602 | -6/Factory | Destroyed 7 combat bots 9630 | -6/Factory | Identified exit to Lower Caves 9630 | -6/Factory | Identified exit to Extension 9968 | -6/Factory | Cargo convoy interrupted 10018 | -6/Factory | Found Prototype Launcher 10018 | -6/Factory | Identified Com. Tesla Bomb Launcher 10019 | -6/Factory | Lost 5 allies 10075 | -6/Factory | Discovered exit to Factory (range 10) 10121 | -6/Factory | Local machine network offline 10124 | -6/Factory | Garrison activated, responded to threat 10132 | -6/Factory | Fabricated P-70 Sage? 10159 | -6/Factory | Lost 3 allies 10199 | -6/Factory | Fabricated P-70 Sage? 10222 | -6/Factory | Identified exit to Garrison 10224 | -6/Factory | Reached level 20 10227 | -6/Factory | Entered Garrison 10227 | -6/Garrison | Accompanied by 3 allies 10247 | -6/Garrison | Triggered checkpoint 10253 | -6/Garrison | Rescued a captive Derelict 10254 | -6/Garrison | Rescued a captive Derelict 10341 | -6/Garrison | Triggered checkpoint 10370 | -6/Garrison | Triggered checkpoint 10399 | -6/Garrison | Triggered checkpoint 10402 | -6/Garrison | Triggered checkpoint 10446 | -6/Garrison | Discovered exit to Factory (range 11) 10453 | -6/Garrison | Triggered checkpoint 10505 | -6/Garrison | Triggered checkpoint 10519 | -6/Garrison | Build established: Wizard-Gunner 10565 | -6/Garrison | Triggered checkpoint 10583 | -6/Garrison | Triggered checkpoint 10750 | -6/Garrison | Garrison Relay disabled 10772 | -6/Garrison | Garrison Relay disabled 10880 | -6/Garrison | Identified exit to Factory 10880 | -6/Garrison | Discovered exit to Factory (range 6) 10962 | -6/Garrison | Triggered checkpoint 11024 | -6/Garrison | Garrison Relay disabled 11027 | -6/Garrison | Triggered checkpoint 11049 | -6/Garrison | Discovered exit to Factory (range 15) 11116 | -6/Garrison | Triggered checkpoint 11164 | -6/Garrison | Discovered exit to Factory (range 12) 11177 | -6/Garrison | Garrison Relay disabled 11219 | -6/Garrison | Attempted to access garrison exit controls, blocked by remote lockdown 11361 | -6/Garrison | Entered Factory 11361 | -5/Factory | Accompanied by 7 allies 11363 | -5/Factory | Reached level 21 11376 | -5/Factory | Identified exit to Upper Caves 11376 | -5/Factory | Discovered exit to Upper Caves (range 16) 11464 | -5/Factory | Joined by Warlord Dakka squad 11504 | -5/Factory | Joined by Warlord Pyro squad 11526 | -5/Factory | Identified exit to Factory 11526 | -5/Factory | Discovered exit to Factory (range 9) 11566 | -5/Factory | Reached level 22 11749 | -5/Factory | Joined by Warlord Chimera squad 11751 | -5/Factory | Fabricated Cld. Aerolev Unit? 11761 | -5/Factory | Fabricated Hyp. Mass Driver? 11925 | -5/Factory | Lost 5 allies 12017 | -5/Factory | Fabricated Cld. Aerolev Unit (x1) 12033 | -5/Factory | Fabricated P-70 Sage? 12122 | -5/Factory | Entered Upper Caves 12122 | -5/Upper Caves | Accompanied by 2 allies 12127 | -5/Upper Caves | Learned Factory non-interactive machine intel 12168 | -5/Upper Caves | Attracted the attention of an 0b10 outpost 12218 | -5/Upper Caves | Attracted the attention of an 0b10 checkpoint 12259 | -5/Upper Caves | Learned Factory stockpile data 12273 | -5/Upper Caves | Found Alien Artifact 12291 | -5/Upper Caves | Sage 6b assimilated hostile B-60 Warrior 12322 | -5/Upper Caves | Identified exit to Upper Caves 12322 | -5/Upper Caves | Discovered exit to Upper Caves (range 8) 12373 | -5/Upper Caves | Entered another Upper Caves area 12373 | -5/Upper Caves | Accompanied by 5 allies 12374 | -5/Upper Caves | Encountered a Warlord checkpoint 12375 | -5/Upper Caves | Reached level 23 12375 | -5/Upper Caves | Upgraded with Utility slot (x1) 12407 | -5/Upper Caves | Learned Factory terminal intel 12440 | -5/Upper Caves | Attracted the attention of an 0b10 checkpoint 12555 | -5/Upper Caves | Attracted the attention of an 0b10 base 12562 | -5/Upper Caves | Sage 6b assimilated hostile S-27 Virus 12573 | -5/Upper Caves | Sage 6b assimilated hostile G-50 Soldier 12590 | -5/Upper Caves | Learned Factory stockpile data 12590 | -5/Upper Caves | Learned Research garrison access intel 12651 | -5/Upper Caves | Identified exit to Warlord 12651 | -5/Upper Caves | Discovered exit to Warlord (range 10) 12688 | -5/Upper Caves | Entered Warlord 12688 | -5/Warlord | Accompanied by 6 allies 12880 | -5/Warlord | Visited the Vortex Lab 12884 | -5/Warlord | Found Prototype Launcher 12884 | -5/Warlord | Identified Vortex Catalyst Activator 12887 | -5/Warlord | Found Prototype Energy Cannon 12887 | -5/Warlord | Identified Vortex Cannon 12901 | -5/Warlord | Warlord's base attacked by MAIN.C 12914 | -5/Warlord | Met Warlord 12918 | -5/Warlord | Opened Warlord's prototype stash 12921 | -5/Warlord | Found Prototype Reactor 12930 | -5/Warlord | Found Prototype Processor 12930 | -5/Warlord | Identified Exp. Targeting Computer 12939 | -5/Warlord | Found Prototype Hackware 12939 | -5/Warlord | Identified Ghost Barrier 13002 | -5/Warlord | Spotted B-86 Titan 13007 | -5/Warlord | Spotted B-75 Beast 13019 | -5/Warlord | Destroyed B-86 Titan 13047 | -5/Warlord | Spotted B-86 Titan 13052 | -5/Warlord | Spotted B-75 Beast 13064 | -5/Warlord | Destroyed B-86 Titan 13067 | -5/Warlord | Allies destroyed B-75 Beast 13147 | -5/Warlord | Warlord forces counterattacked 13201 | -5/Warlord | Spotted B-75 Beast 13204 | -5/Warlord | Spotted B-86 Titan 13227 | -5/Warlord | P-80 Master assimilated allied 82-UJK(g) 13228 | -5/Warlord | Allies destroyed B-75 Beast 13259 | -5/Warlord | Lost 6 allies 13305 | -5/Warlord | Spotted Executioner 13306 | -5/Warlord | Reached level 24 13310 | -5/Warlord | Upgraded with Power slot (x1) 13319 | -5/Warlord | Allies destroyed Executioner 13349 | -5/Warlord | Lost 3 allies 13401 | -5/Warlord | Spotted Striker 13401 | -5/Warlord | Spotted Executioner 13401 | -5/Warlord | Spotted Executioner 13401 | -5/Warlord | Destroyed Striker 13407 | -5/Warlord | Allies destroyed Executioner 13419 | -5/Warlord | Identified Vortex Chain Reactor 13421 | -5/Warlord | Found Corrupted Prototype Processor 13434 | -5/Warlord | Identified exit to Proximity Caves 13434 | -5/Warlord | Discovered exit to Proximity Caves (range 9) 13442 | -5/Warlord | Lost 5 allies 13460 | -5/Warlord | Entered Proximity Caves 13460 | -4/Proximity Caves | Accompanied by 8 allies 13469 | -4/Proximity Caves | Attracted the attention of an 0b10 outpost 13484 | -4/Proximity Caves | Sage 6b assimilated hostile B-60 Warrior 13685 | -4/Proximity Caves | Received a Behemoth hack from an annoying Tinkerer 13831 | -4/Proximity Caves | Spotted B-86 Titan 13889 | -4/Proximity Caves | Destroyed B-86 Titan 13899 | -4/Proximity Caves | Lost 3 allies 13942 | -4/Proximity Caves | Discovered exit to Factory (range 5) 13960 | -4/Proximity Caves | Identified Exp. Core Analyzer 13962 | -4/Proximity Caves | Entered Factory 13962 | -4/Factory | Accompanied by 6 allies 13964 | -4/Factory | Loaded intel: 226 non-interactive machine locations 13964 | -4/Factory | Reached level 25 13965 | -4/Factory | Loaded intel: 26 terminal locations 13978 | -4/Factory | Identified exit to Upper Caves 14297 | -4/Factory | Reached level 26 14340 | -4/Factory | Fabricated P-60 Hacker? 14425 | -4/Factory | Entered Upper Caves 14425 | -4/Upper Caves | Accompanied by 8 allies 14476 | -4/Upper Caves | Learned location of 1 exit from Research 14501 | -4/Upper Caves | Identified exit to Upper Caves 14501 | -4/Upper Caves | Discovered exit to Upper Caves (range 15) 14503 | -4/Upper Caves | Encountered a Warlord checkpoint 14510 | -4/Upper Caves | Hacker 7a assimilated hostile S-27 Virus 14548 | -4/Upper Caves | Entered another Upper Caves area 14548 | -4/Upper Caves | Accompanied by 9 allies 14563 | -4/Upper Caves | Learned location of Quarantine (-2) 14641 | -4/Upper Caves | Learned location of 1 exit from Research 14786 | -4/Upper Caves | Attracted the attention of an 0b10 outpost 14792 | -4/Upper Caves | Hacker 7b assimilated hostile B-60 Warrior 14820 | -4/Upper Caves | Lost 5 allies 14860 | -4/Upper Caves | Identified exit to Zhirov 14860 | -4/Upper Caves | Discovered exit to Zhirov (range 7) 14911 | -4/Upper Caves | Entered Zhirov 14911 | -4/Zhirov | Accompanied by 7 allies 14913 | -4/Zhirov | Identified exit to Proximity Caves 14913 | -4/Zhirov | Discovered exit to Proximity Caves (range 3) 14920 | -4/Zhirov | Met Zhirov 14930 | -4/Zhirov | Learned location of Testing (-3) 14930 | -4/Zhirov | Learned location of Command (-1) 14934 | -4/Zhirov | Zhirov requested help retrieving the SGEMP Prototype 14940 | -4/Zhirov | Found Alien Artifact 14940 | -4/Zhirov | Identified Integrated Reactor 14940 | -4/Zhirov | Installed Integrated Reactor, increased core energy generation (+10) 14948 | -4/Zhirov | Found Alien Artifact 15079 | -4/Zhirov | Entered Proximity Caves 15079 | -3/Proximity Caves | Accompanied by 7 allies 15089 | -3/Proximity Caves | Reached level 27 15107 | -3/Proximity Caves | Upgraded with Propulsion slot (x1) 15177 | -3/Proximity Caves | Spotted B-86 Titan 15312 | -3/Proximity Caves | Identified exit to Research 15312 | -3/Proximity Caves | Discovered exit to Research (range 16) 15542 | -3/Proximity Caves | Entered Research 15542 | -3/Research | Accompanied by 6 allies 15543 | -3/Research | Identified exit to Research 15544 | -3/Research | Loaded intel: 83 trap records 15544 | -3/Research | Reached level 28 15544 | -3/Research | Upgraded with Propulsion slot (x1) 15547 | -3/Research | Loaded intel: 1 garrison access location 15641 | -3/Research | Identified exit to Armory 15641 | -3/Research | Identified exit to Testing 15674 | -3/Research | Spotted B-86 Titan 15842 | -3/Research | Garrison activated, responded to threat 15877 | -3/Research | Destroyed 8 combat bots 15992 | -3/Research | Found Molecular Scythe 16031 | -3/Research | Build established: Wizard-Sprinter 16099 | -3/Research | Fabricated Adv. Hacking Suite (x1) 16118 | -3/Research | Fabricated Adv. Salvage Targeting Computer (x1) 16165 | -3/Research | Fabricated P-60 Hacker? 16215 | -3/Research | Entered Testing 16215 | -3/Testing | Accompanied by 2 allies 16217 | -3/Testing | Reached level 29 16303 | -3/Testing | Found Prototype Device 16306 | -3/Testing | Identified Exp. Focal Shield 16320 | -3/Testing | Found Prototype Device 16327 | -3/Testing | Identified AEGIS Remote Shield 16361 | -3/Testing | Spotted PG-6RBNV9AFS4 16472 | -3/Testing | Protovariant out of control (PG-6RBNV9AFS4) 16472 | -3/Testing | Unleashed a protovariant (PG-6RBNV9AFS4) 16478 | -3/Testing | Spotted Striker 16478 | -3/Testing | Spotted Striker 16500 | -3/Testing | Destroyed Striker 16529 | -3/Testing | Destroyed Striker 16541 | -3/Testing | Spotted Alpha 7 16604 | -3/Testing | Destroyed Alpha 7 16626 | -3/Testing | Stole the SGEMP Prototype 16672 | -3/Testing | Protovariant out of control (PG-WADMEKTI6N) 16672 | -3/Testing | Unleashed a protovariant (PG-WADMEKTI6N) 16788 | -3/Testing | Found Prototype Device 16803 | -3/Testing | Discovered exit to Research (range 17) 16808 | -3/Testing | Identified 2N-1CE's Frost Array 17003 | -3/Testing | Fabricated Adv. System Restoration Module? 17274 | -3/Testing | Upgraded with Weapon slot (x1) 17427 | -3/Testing | Identified Transdimensional Reconstructor 17438 | -3/Testing | Reached level 30 17438 | -3/Testing | Scanned by Researcher 17464 | -3/Testing | Entered Research 17464 | -2/Research | Warlord forces began assault on 0b10 17465 | -2/Research | Identified exit to Quarantine 17503 | -2/Research | Spotted B-90 Cyclops 17574 | -2/Research | Research machine network offline 17574 | -2/Research | Spotted B-90 Cyclops 17585 | -2/Research | Reached level 31 17597 | -2/Research | Upgraded with Utility slot (x1) 17674 | -2/Research | Met up with Warlord 17724 | -2/Research | Spotted Striker 17752 | -2/Research | Destroyed Striker 17848 | -2/Research | Borebot progress halted 17876 | -2/Research | Spotted Striker 17891 | -2/Research | Spotted Striker 17894 | -2/Research | Destroyed Striker 18011 | -2/Research | Spotted Striker 18079 | -2/Research | Spotted B-90 Cyclops 18096 | -2/Research | Destroyed B-90 Cyclops 18103 | -2/Research | Borebot progress halted 18143 | -2/Research | Identified exit to Access 18143 | -2/Research | Discovered exit to Access (range 11) 18175 | -2/Research | Spotted Striker 18175 | -2/Research | Spotted Striker 18260 | -2/Research | Destroyed Striker 18268 | -2/Research | Destroyed Striker 18289 | -2/Research | Destroyed 8 combat bots 18307 | -2/Research | Spotted B-90 Cyclops 18479 | -2/Research | Discovered exit to Quarantine (range 21) 18494 | -2/Research | Warlord invited to help at Command 18494 | -2/Research | Reached level 32 18556 | -2/Research | Spotted Striker 18570 | -2/Research | Spotted Executioner 18572 | -2/Research | Spotted Striker 18579 | -2/Research | Spotted Executioner 18583 | -2/Research | Destroyed Striker 18586 | -2/Research | Destroyed Executioner 18592 | -2/Research | Destroyed Executioner 18681 | -2/Research | Entered Quarantine 18683 | -2/Quarantine | Spotted Alpha 7 18718 | -2/Quarantine | Found Alien Artifact 18728 | -2/Quarantine | Cryocooling Duct disabled 18743 | -2/Quarantine | Ambient heat levels rising (+20) 18743 | -2/Quarantine | Non-combat units ordered to evacuate 18878 | -2/Quarantine | Identified Core Reset Matrix 18976 | -2/Quarantine | Found Alien Impact Weapon 18984 | -2/Quarantine | Identified Core Stripper 19001 | -2/Quarantine | Found Alien Artifact 19125 | -2/Quarantine | Discovered exit to Access (range 14) 19147 | -2/Quarantine | Found Alien Artifact 19164 | -2/Quarantine | Identified Terrabomb 19229 | -2/Quarantine | Found Alien Artifact 19240 | -2/Quarantine | Identified Hpw. Transdimensional Reconstructor 19240 | -2/Quarantine | Identified Subatomic Replicator 19379 | -2/Quarantine | Spotted Fortress 19485 | -2/Quarantine | Found Prototype Device 19485 | -2/Quarantine | Identified Exp. ECM Suite 19488 | -2/Quarantine | Found Prototype Processor 19488 | -2/Quarantine | Identified Exp. Target Analyzer 19491 | -2/Quarantine | Found Prototype Ballistic Gun 19491 | -2/Quarantine | Identified Multirail 19500 | -2/Quarantine | Found Alien Launcher 19564 | -2/Quarantine | Identified Sigix Terminator 19572 | -2/Quarantine | Fired Sigix Terminator 19850 | -2/Quarantine | Destroyed Fortress 19869 | -2/Quarantine | Found Prototype Device 19869 | -2/Quarantine | Identified Exp. EM Disruption Field 20028 | -2/Quarantine | Identified exit to Section 7 20028 | -2/Quarantine | Discovered exit to Section 7 (range 6) 20030 | -2/Quarantine | Entered Section 7 20032 | -2/Section 7 | Reached level 33 20048 | -2/Section 7 | Found Alien Artifact 20077 | -2/Section 7 | Found Alien Artifact 20250 | -2/Section 7 | Spotted B-90 Cyclops 20461 | -2/Section 7 | Discovered exit to Access (range 12) 20479 | -2/Section 7 | Garrison activated, responded to threat 20481 | -2/Section 7 | Scanned by Researcher 20482 | -2/Section 7 | Intercept squad dispatched 20482 | -2/Section 7 | Spotted Tracker 20484 | -2/Section 7 | Spotted Tracker 20484 | -2/Section 7 | Spotted Combat Programmer 20485 | -2/Section 7 | Spotted Combat Programmer 20493 | -2/Section 7 | Destroyed Tracker 20552 | -2/Section 7 | Destroyed Combat Programmer 20608 | -2/Section 7 | Intercept squad dispatched 20608 | -2/Section 7 | Spotted Tracker 20608 | -2/Section 7 | Spotted Tracker 20609 | -2/Section 7 | Warped through subspace 20610 | -2/Section 7 | Spotted B-99 Colossus 20653 | -2/Section 7 | Found Alien Artifact 20653 | -2/Section 7 | Identified LRC Energy Well 20653 | -2/Section 7 | Installed LRC Energy Well, increased energy storage capacity (+250) 20701 | -2/Section 7 | Spotted Combat Programmer 20714 | -2/Section 7 | Destroyed Combat Programmer 20737 | -2/Section 7 | Found Alien Artifact 20737 | -2/Section 7 | Identified Core Expander 20737 | -2/Section 7 | Installed Core Expander, added new Propulsion slot 20739 | -2/Section 7 | Found Core Expander 20739 | -2/Section 7 | Installed Core Expander, added new Weapon slot 20741 | -2/Section 7 | Found Core Expander 20741 | -2/Section 7 | Installed Core Expander, added new Power slot 20798 | -2/Section 7 | Spotted Combat Programmer 20807 | -2/Section 7 | Spotted Executioner 20807 | -2/Section 7 | Spotted Executioner 20817 | -2/Section 7 | First assault squad dispatched 20820 | -2/Section 7 | Spotted Alpha 7 20820 | -2/Section 7 | Spotted Alpha 7 20827 | -2/Section 7 | Identified Integrity Redistributor 20827 | -2/Section 7 | Identified Spacefold Activator 20844 | -2/Section 7 | Intercept squad dispatched 20863 | -2/Section 7 | Spotted Tracker 20864 | -2/Section 7 | Spotted Tracker 20872 | -2/Section 7 | Spotted Combat Programmer 20873 | -2/Section 7 | Spotted Combat Programmer 20874 | -2/Section 7 | Core integrity fell below 50% 20883 | -2/Section 7 | Core integrity fell below 20% 20891 | -2/Section 7 | Destroyed by Tracker with Linked Autogun Last Messages --------------- 20878_ EMDS Slug penetrates Wall. 20878_ Penetrated by EMDS Slug. 20880_ Adv. Corruption Screen intercepted 1% system corruption. 20880_ Penetrated by EMDS Slug. 20882_ Field strength at 95. 20883_ Field strength at 90. 20884_ EMDS Slug penetrates Wall. 20884_ Combat Programmer resets Combat Programmer, system corruption cleaned. 20884_ Field strength at 85. 20885_ Field strength at 80. 20886_ Penetrated by EMDS Slug. 20886_ Field strength at 75. 20887_ Field strength at 70. 20890_ Penetrated by EMDS Slug. 20890_ Adv. Corruption Screen intercepted 1% system corruption. 20890_ EMDS Slug penetrates Wall. 20891_ Cld. Aerolev Unit temporarily disabled. Map ----- +----------------------------------------------------+ | ##########???????????????#"" #?????????????? | | #???????????????#"T #?????????????? | | """"""" #???????????????#"" """ "#???########## | | """"""" #???????????????#"" """ #"#### | | """ #???????????????# """ # !!#=""" """ | | "!" #???????????????# # ! #=""" """ | | """ #???????????###########+###%<**#|""" """ | | ????????????# =% "[![ | | ?? ??????????????# !=!#!! "" | | ####+################# ![%#=!"""S"" | | !%=[#! """""" | | ############## ###########/#"#""####### | | ## # #??# |*= #????? | | ## """ # # # #### #????? | | #### ## """ [ u ] # #????? | | ???# ## """ # [# #????? | | ???# # """ "" "" # # #????? | | ???# ## """ ""T"" # " # #????? | | ???# ## """ " # % ** #????? | | ???# ########### * " # % [%[=#????? | | #### ############ ! # % !|!%==#????? | | #% % $$![[#????? | | % # ""%%=!!#????? | | | #%% !"$%*=*#????? | | # %"""$"=[!#????? | | ###########+########## @######## """""=!=#????? | | %% "#?? ???????# #??????# [!=!!%%#????? | | =" ## """"""" ?????# #??????##"/#####+##????? | | " ## """"""" #????# #???????## ???%!%!#????? | | " ## """"""" #????# #????????# ???""%[#????? | | " ## #????# #???##########""*%#????? | | " ##% "" "" #????# #?? #""==#??##+ | | "" ## ""T"" ###??# #?? !* #?*!=#??# | | ##* """ ## #?#ps #? !* #?"!/+?? | | ##################""##s #? ] #?"!!#??# | | =$$%^%!! # *#?"!=#??# | | |$$^== p# #? ! #??# | | =!^ ! + #?"""???# | | ^ # """"""" #?? #???# " | | #####" #################### """"""" ????#????#"% | | ##??#"T#???????????????????? """"""" ???####### " | | #??####???????????????????? %???# # | | ##??????????????????????????? ???# # | | #????????????????????????????####### #???# # | | #??????????????????????????????????#"#???# # | | #??????????????????#################"##### "" # | | ##############?????# # # "" + | | ## #?#####! """# " " # "" # | | ## ### # """# """ """ # S ## | | ## T + """# """" """" = # "" ##+ | +----------------------------------------------------+ Best States ------------- Heat Dissipation 92 Energy Generation 70 Energy Capacity 1000 Matter Stores 400 Matter Capacity 400 Sight Range 22 Terrain Scan Density 10 Corruption Block 20 Armor Coverage 150 Resistance: KI 50 Resistance: TH 45 Resistance: EX 50 Resistance: EM 100 Resistance: I 35 Resistance: S 35 Resistance: P 35 Utility Shielding 33 Melee Speed Boost 30 Phase Shifting 5 Evasion (%) 75 Targeting Accuracy 20 Melee Accuracy 8 Target Analysis 14 Core Analysis 11 Recoil Reduction 6 Salvage Targeting 3 Offensive Hacking 44 Defensive Hacking 39 Item Schematics ----------------- Hover Unit | -10/Materials | Hacked Airjet | -8/Materials | Hacked Imp. Assault Rifle | -8/Materials | Scanalyzed Cld. Airjet | -7/Factory | Hacked Imp. Reaction Control System | -7/Factory | Hacked Hacking Suite | -7/Factory | Hacked Falx | -7/Factory | Hacked Enh. Nuclear Core | -7/Factory | Scanalyzed Combat Drone Bay | -7/Data Miner | Free Lgt. Regenerative Plating | -7/Data Miner | Free Cld. Aerolev Unit | -7/Data Miner | Free Gravity Neutralizer | -7/Data Miner | Free Force Rifle | -7/Data Miner | Free Antigrav System | -7/Data Miner | Free Imp. Coolant Injector | -7/Data Miner | Free Enh. Gauss Cannon | -7/Data Miner | Free Lance | -7/Data Miner | Free Hyp. Mass Driver | -5/Factory | Hacked Cld. Gravmag System | -5/Factory | Hacked Assault Drone Bay | -4/Zhirov | Free Exp. Heat Sink | -4/Zhirov | Free Exp. Optical Array | -4/Zhirov | Free Imp. Arc Thrower | -4/Zhirov | Free Adv. Hacking Suite | -3/Research | Hacked Adv. Salvage Targeting Computer | -3/Research | Hacked Adv. Corruption Screen | -3/Research | Hacked Lgt. Antimatter Cannon | -3/Research | Scanalyzed Adv. KE Penetrator | -3/Testing | Archive Exp. Focal Shield | -3/Testing | Scanalyzed Adv. System Restoration Module | -3/Testing | Hacked Plasma Sword | -3/Testing | Archive Mni. Fusion Reactor | -3/Testing | Archive Adv. Thermal Defense Suite | -3/Testing | Archive Imp. Energy Well | -3/Testing | Archive Tactical Quantum Warhead | -3/Testing | Archive Neutron Missile Launcher | -3/Testing | Archive Hellfire Missile Launcher | -3/Testing | Archive Com. Particle Reactor | -3/Testing | Archive Centrium Heavy Armor Plating | -3/Testing | Archive Exp. Shield Generator | -3/Testing | Archive Cld. Proton Cannon | -3/Testing | Archive Centrium Medium Armor Plating | -3/Testing | Archive Hvy. Gatling Laser | -3/Testing | Archive Enh. Armored Medium Treads | -3/Testing | Archive Diametric Drive | -3/Testing | Archive Cld. Nuclear Pulse Thruster | -3/Testing | Archive Exp. Hacking Suite | -2/Quarantine | Hacked Exp. Core Analyzer | -2/Quarantine | Hacked Exp. Shock Absorption System | -2/Section 7 | Archive Adv. Matter Compressor | -2/Section 7 | Archive Helical Railgun | -2/Section 7 | Archive Cld. Linear Gravjet | -2/Section 7 | Archive Shock Maul | -2/Section 7 | Archive Hvy. Dispersion Rifle | -2/Section 7 | Archive Centrium Heavy Treads | -2/Section 7 | Archive Plasma Lance | -2/Section 7 | Archive Exp. Signal Interpreter | -2/Section 7 | Archive Exp. Power Amplifier | -2/Section 7 | Archive Centrium Light Armor Plating | -2/Section 7 | Archive Imp. Energy Mantle | -2/Section 7 | Archive Graviton Cannon | -2/Section 7 | Scanalyzed Robot Schematics ------------------ H-55 Commando | -7/Factory | Hacked R-10 Processor | -7/Data Miner | Free S-27 Virus | -7/Data Miner | Free G-50 Soldier | -7/Data Miner | Free M-14 Sweeper | -7/Data Miner | Free P-70 Sage | -6/Factory | Hacked P-60 Hacker | -5/Factory | Hacked T-07 Excavator | -3/Testing | Archive A-15 Conveyor | -3/Testing | Archive S-43 Plague | -3/Testing | Archive B-60 Warrior | -3/Testing | Archive L-61 Swordsman | -3/Testing | Archive K-01 Serf | -3/Testing | Archive W-44 Eye | -3/Testing | Archive R-06 Scavenger | -2/Section 7 | Archive C-65 Expert | -2/Section 7 | Archive G-67 Veteran | -2/Section 7 | Archive G-73 Enforcer | -2/Section 7 | Archive A-02 Transporter | -2/Section 7 | Archive Fabricated ------------ Imp. Salvage Targeting Computer | x2 | -7/Factory | Preloaded Cld. Airjet | x1 | -7/Factory Cld. Airjet | x1 | -7/Factory Cld. Airjet | x1 | -7/Factory Cld. Airjet | x1 | -7/Factory Imp. Reaction Control System | x1 | -7/Factory H-55 Commando | x2 | -7/Factory Enh. Nuclear Core | x1 | -7/Factory H-55 Commando | x2 | -7/Factory H-55 Commando | x2 | -7/Factory H-55 Commando | x2 | -7/Factory P-70 Sage | x2 | -6/Factory P-70 Sage | x2 | -6/Factory Cld. Aerolev Unit | x1 | -5/Factory Hyp. Mass Driver | x2 | -5/Factory Cld. Aerolev Unit | x1 | -5/Factory P-70 Sage | x2 | -5/Factory P-60 Hacker | x2 | -4/Factory Adv. Hacking Suite | x1 | -3/Research Adv. Salvage Targeting Computer | x1 | -3/Research P-60 Hacker | x2 | -3/Research Adv. System Restoration Module | x2 | -3/Testing Alien Tech Used ----------------- Integrated Reactor Core Stripper Sigix Terminator High-powered Transdimensional Reconstructor LRC Energy Well Core Expander Achievements -------------- Beloved Infiltrator Preemptive Strike Signature Confirmed Sunderer Challenges ------------ None RPGLIKE | -11 -10 -10 -10 -9 -8 -8 -8 -8 -8 -8 -8 -7 -7 -7 -7 -6 -6 -6 -5 -5 -5 -5 -4 -4 -4 -4 -4 -3 -3 -3 -2 -2 -2 --------- Run | Yrd Mat Min Exi Min Mat Gar Mat Gar Mat Gar Mat Fac Low Low Dat Pro Fac Gar Fac Upp Upp War Pro Fac Upp Upp Zhi Pro Res Tes Res Qua Sec Levels Raised 32 | . . 1 . 1 5 2 1 1 1 1 . 2 . . 1 1 2 . 2 . 1 1 . 2 . . . 1 1 2 2 . 1 XP Earned 54908 | 6000 1100 1000 200 1976 6707 2603 2295 1607 1367 922 685 2548 593 203 220 2112 2363 1412 2473 508 459 1430 1152 1738 168 274 170 1587 1812 1895 3267 969 1093 XP Spent 53990 | 5960 . 1500 . 1495 4300 6240 1100 1825 1550 200 . 4105 . . . 2630 2000 1300 1715 . 2600 1915 . 2700 . . . 1400 1700 1100 5150 . 1505 Upgrades 83 | 14 . 4 . 4 5 11 1 2 3 1 . 8 . . . 4 1 2 6 . 1 5 . 2 . . . 1 1 1 2 . 4 Power Slot 1 | . . . . . . . . . . . . . . . . . . . . . . 1 . . . . . . . . . . . Propulsion Slot 5 | 1 . . . . 2 . . . . . . . . . . . . . . . . . . . . . . 1 1 . . . . Utility Slot 9 | 1 . 1 . 1 1 1 . . . . . 1 . . . 1 . . . . 1 . . . . . . . . . 1 . . Weapon Slot 3 | 1 . . . . . 1 . . . . . . . . . . . . . . . . . . . . . . . 1 . . . Core Integrity 13 | 2 . . . 1 . 2 . 1 . . . 2 . . . . . . 1 . . 1 . . . . . . . . . . 3 Heat Dissipation 8 | 1 . . . . . 1 . . . . . . . . . 3 . . 3 . . . . . . . . . . . . . . Energy Generation 1 | . . . . . . . . . . . . . . . . . . . 1 . . . . . . . . . . . . . . Energy Storage 1 | . . . . . . . . . . . . 1 . . . . . . . . . . . . . . . . . . . . . Matter Storage 2 | . . . . . . . . . . . . 2 . . . . . . . . . . . . . . . . . . . . . Mass Support 4 | 1 . . . . . 1 . . . . . . . . . . . . . . . . . 2 . . . . . . . . . Inventory Capacity 9 | 5 . . . . . 1 . 1 . . . . . . . . 1 . . . . . . . . . . . . . 1 . . Sight Range 6 | 1 . 1 . . . . . . 2 . . . . . . . . 1 . . . . . . . . . . . . . . 1 Ranged Accuracy 5 | 1 . . . . 1 . . . . . . 2 . . . . . . 1 . . . . . . . . . . . . . . Hack Attack % 2 | . . . . 1 . . . . . . . . . . . . . 1 . . . . . . . . . . . . . . . Hack Defense % 2 | . . 1 . . . . . . . . . . . . . . . . . . . 1 . . . . . . . . . . . KI Resistance % 3 | . . . . 1 . 1 . . . . . . . . . . . . . . . 1 . . . . . . . . . . . TH Resistance % 2 | . . . . . . 1 . . 1 . . . . . . . . . . . . . . . . . . . . . . . . EX Resistance % 3 | . . . . . . 1 . . . 1 . . . . . . . . . . . 1 . . . . . . . . . . . KI Damage % 4 | . . 1 . . 1 1 1 . . . . . . . . . . . . . . . . . . . . . . . . . . Protomatter Created 9390 | . 13 59 . 48 207 121 233 267 334 408 254 411 220 . . 462 449 326 393 186 30 300 93 391 44 27 . 142 209 748 1346 734 935 Integrity Restored 7706 | . 39 110 . 23 366 317 121 284 159 256 69 441 212 . . 166 283 549 104 127 158 85 199 105 . 75 . 85 268 1236 473 846 550 Core 6029 | . 39 88 . 10 325 231 74 208 69 205 52 343 163 . . 126 236 423 81 103 122 57 158 68 . 55 . 66 207 997 322 681 520 Parts 1677 | . . 22 . 13 41 86 47 76 90 51 17 98 49 . . 40 47 126 23 24 36 28 41 37 . 20 . 19 61 239 151 165 30 Protomatter Decayed 10344 | . . 20 . 120 1 116 174 86 188 418 218 380 139 . . 382 406 417 502 186 . 753 33 355 . 88 . 152 175 389 3085 747 814 Game ------ Seed ScatterAdvancedFlail Manual? 0 Play Time 06:54:23 Cumulative 70.8 hours Start 2024.06.22 @ 18:10:26 End 2024.06.23 @ 21:42:03 Sessions 9 Manual Loads 0 Difficulty Explorer Special Mode Winter2019/RPGLIKE Game No. 15 Rogue 0 Adventurer 0 Explorer 15 Win Type - Total 9 Types 5/0/3/0/0/0/0/1/0 Lore% 67 Gallery% 48 Achievement% 60 Wizard Run 0 Options --------- Layout 2 ASCII 0 Keyboard 1 Movement Numpad Keybinds 0 Fullscreen 1 Font 24/Smallcaps Map View 50x44 Zoom Use 0% Tactical HUD 1 Map Filters NONE Filters NONE Steam 1 RUN: a6ce815f-91fd-4ca5-8642-b4632f4585ee